Cogmind - Beta 16 @@@ ROGUE MODE // 2025.11.10 @ 23:31:49 Player: szymekc Result: Destroyed by P-80 Master with Gamma Rifle Performance ------------- Evolutions (9) 4500 Regions Visited (31) 6200 Robots Destroyed (1147) 5735 Value Destroyed (74291) 74291 Prototype IDs (168) 3360 Alien Tech Used (6) 1200 Bonus (108286) 108286 TOTAL SCORE: 203572 Bonus ------- Triggered High Security 1000 High Alert Combat Kills 62815 Follower Combat Kills 199 Destroyed Unchained 3000 Registered with UFD 300 Met Optimus in HQ 500 Met Imprinter 300 Destroyed Z-Imprinter 1000 Met Zhirov 300 Met Warlord at Base 500 MAIN.C Attacked Warlord 500 Scanned by Researcher 500 Destroyed Superfortress 15000 Met Optimus at Protoforge 1000 Executed Drillbomb Mission 10000 Optimus Survived to 0b1 3000 Destroyed MAIN.C Guards 500 Met MAIN.C 5000 Destroyed MAIN.C Shell 5000 Friendly Fire -2128 Cogmind --------- Core Integrity 0/1600 Matter 240/300 Energy 100/100 System Corruption 10% Temperature Cool (0) Movement Core (50) Location -1/Command Parts ------- > --- POWER (3) -------- (None) > --- PROPULSION (9) --- Experimental Gyrokinetic Inverter Concept Gyrokinetic System > --- UTILITY (11) ----- Concept Phasing Heat Sink Experimental Optical Array Improved Weapon Shielding > --- WEAPON (3) ------- (None) > --- INVENTORY (5) ---- Heavy Regenerative Plating Potential Cannon Peak State ------------ > --- POWER ------------ Hybrid Graviton Reactor Concept Zero-point Core Concept Zero-point Core > --- PROPULSION ------- Experimental Gyrokinetic Inverter Gravjet Array Concept Combat Aerolev Unit Concept Combat Aerolev Unit Concept Gyrokinetic System Concept Gyrokinetic System Concept Gyrokinetic System Concept Gyrokinetic System > --- UTILITY ---------- Concept Phasing Heat Sink Concept Antigrav Storage Unit Experimental Optical Array Concept Weapon Articulator Experimental Core Analyzer Concept Phase Shift Module Concept Cloak Mesh Concept Cloak Mesh Heavy Regenerative Plating Advanced Force Field > --- WEAPON ----------- Hypervelocity Multirail Concept Heavy Railcannon > --- INVENTORY -------- Experimental Antigrav System Concept Chromion Battery Concept Chromion Battery Concept NT7 Matterbank Experimental Signal Interpreter Experimental Weapon Cycler Experimental Reaction Control System Experimental Reaction Control System ID Mask Graphene Brace Advanced Force Field Advanced Force Field Concept Antimissile System Transdimensional Reconstructor Potential Cannon Concept Plasma Driver Concept Plasma Driver Improved Potential Cannon Cooled Directed Potential Cannon Concept Rapid Grenade Launcher Nanosword [Rating: 316] Favorites ----------- Power Concept Zero-point Core Engine Cooled Ion Engine Power Core Concept Zero-point Core Reactor Hybrid Graviton Reactor Propulsion Concept Gyrokinetic System Treads Light Treads Wheel Armored Wheel Hover Unit Concept Gyrokinetic System Flight Unit Improved Cesium-ion Thruster Utility Experimental Optical Array Device Experimental Reaction Control System Storage Concept Antigrav Storage Unit Processor Experimental Optical Array Hackware Hacking Suite Protection Centrium Heavy Armor Plating Weapon Flak Cannon Energy Gun Improved EM Shotgun Energy Cannon Concept Plasma Driver Ballistic Gun Heavy Assault Rifle Ballistic Cannon Flak Cannon Launcher Long-range Missile Launcher Special Weapon Improved Remote Datajack Impact Weapon Powered Hammer Slashing Weapon Concept Deflector Sword Piercing Weapon Heavy Pick Special Melee Weapon Datajack Build | -11 -10 -10 -9 -9 -9 -9 -6 -6 -6 -6 -6 -6 -6 -5 -5 -5 -5 -5 -4 -4 -4 -4 -4 -3 -3 -3 -3 -2 -2 -1 -1 ------- Run | Yrd Mat Min Mat Sto Rec Scr Fac Was Fac Low Low Zio Dee Pro Fac Upp Upp Zhi Pro Fac Upp Upp War Pro Res Qua Frg Res Tes Acc Com Slots Evolved 18 | . . . 2 . . . 6 . . . . . . . 2 . . . . 2 . . . . 2 . . 2 . 2 . Power 2 | . . . . . . . . . . . . . . . 1 . . . . . . . . . . . . 1 . . . Propulsion 7 | . . . 1 . . . 2 . . . . . . . 1 . . . . 1 . . . . 1 . . . . 1 . Utility 9 | . . . 1 . . . 4 . . . . . . . . . . . . 1 . . . . 1 . . 1 . 1 . Weapon . | . . . . . . . . . . . . . . . . . . . . . . . . . . . . . . . . Parts Attached 343 | 6 10 2 15 17 3 16 35 . 7 2 2 1 10 5 8 4 2 3 . 20 . 2 7 . 20 6 98 5 11 15 11 Power 32 | 1 1 2 1 5 . 1 2 . 1 . . . . 1 1 2 . 1 . . . . . . 5 . 8 . . . . Engine 11 | 1 1 2 1 5 . . . . . . . . . 1 . . . . . . . . . . . . . . . . . Core 13 | . . . . . . 1 2 . 1 . . . . . 1 2 . . . . . . . . 1 . 5 . . . . Reactor 8 | . . . . . . . . . . . . . . . . . . 1 . . . . . . 4 . 3 . . . . Propulsion 80 | 2 1 . 5 6 . 6 8 . . . . . 2 2 2 1 1 1 . 3 . . 2 . 2 . 31 1 . 1 3 Treads 17 | 2 1 . 5 6 . . . . . . . . . . . . . . . . . . . . . . . . . . 3 Leg . | . . . . . . . . . . . . . . . . . . . . . . . . . . . . . . . . Wheel 2 | . . . . . . 2 . . . . . . . . . . . . . . . . . . . . . . . . . Hover 18 | . . . . . . . . . . . . . 2 1 . . . 1 . . . . . . . . 12 1 . 1 . Flight 43 | . . . . . . 4 8 . . . . . . 1 2 1 1 . . 3 . . 2 . 2 . 19 . . . . Utility 156 | 1 5 . 3 3 1 2 18 . 5 2 2 1 7 1 4 1 1 1 . 10 . 1 3 . 12 4 44 4 6 10 4 Device 84 | 1 1 . 2 1 . 1 6 . 2 2 2 1 2 . 4 1 . . . 4 . . 1 . 8 2 26 3 2 9 3 Storage 12 | . 3 . 1 . . . 1 . . . . . . . . . . . . . . . . . 1 1 4 . . 1 . Processor 24 | . 1 . . 2 . 1 6 . 1 . . . . . . . . . . 2 . 1 2 . 1 . 7 . . . . Hackware 21 | . . . . . 1 . 4 . 2 . . . 3 . . . . . . 3 . . . . 2 1 3 . 2 . . Protection 15 | . . . . . . . 1 . . . . . 2 1 . . 1 1 . 1 . . . . . . 4 1 2 . 1 Artifact . | . . . . . . . . . . . . . . . . . . . . . . . . . . . . . . . . Weapon 75 | 2 3 . 6 3 2 7 7 . 1 . . . 1 1 1 . . . . 7 . 1 2 . 1 2 15 . 5 4 4 Energy Gun 1 | . . . 1 . . . . . . . . . . . . . . . . . . . . . . . . . . . . Energy Cannon 15 | . . . 1 . . 2 1 . . . . . . . 1 . . . . 1 . . . . . . 4 . 4 . 1 Ballistic Gun 12 | 2 2 . . 1 . . 2 . . . . . . 1 . . . . . . . 1 . . . . . . 1 1 1 Ballistic Cannon 11 | . . . 4 1 . . . . . . . . . . . . . . . 2 . . . . . . 3 . . . 1 Launcher 7 | . 1 . . . . . . . 1 . . . . . . . . . . . . . . . . . 1 . . 3 1 Special Weapon 6 | . . . . . 2 1 . . . . . . 1 . . . . . . 1 . . . . . . 1 . . . . Impact Weapon 4 | . . . . . . 2 . . . . . . . . . . . . . 1 . . . . . . 1 . . . . Slashing Weapon 10 | . . . . 1 . 1 2 . . . . . . . . . . . . . . . . . . 2 4 . . . . Piercing Weapon 8 | . . . . . . 1 1 . . . . . . . . . . . . 2 . . 2 . 1 . 1 . . . . Special Melee Weapon 1 | . . . . . . . 1 . . . . . . . . . . . . . . . . . . . . . . . . Unidentified Prototypes 63 | . . . 2 3 . . 2 . . . . 1 3 . . . 1 4 . 1 . . 3 . . 3 29 1 7 3 . Parts Lost 51 | . . . 2 1 . . . . 5 . . . 2 . 1 . 3 . . . . . . . 1 . 12 . 1 4 19 Power 5 | . . . 1 . . . . . . . . . . . . . . . . . . . . . . . 1 . . . 3 Propulsion 16 | . . . . . . . . . 1 . . . 1 . 1 . 1 . . . . . . . . . 4 . . . 8 Utility 21 | . . . 1 . . . . . 3 . . . . . . . 1 . . . . . . . 1 . 5 . 1 2 7 Weapon 9 | . . . . 1 . . . . 1 . . . 1 . . . 1 . . . . . . . . . 2 . . 2 1 Highest Loss Streak 14 | . . . 1 1 . . . . 5 . . . 2 . 1 . 3 . . . . . . . 1 . 6 . 1 1 14 To Critical Strikes 1 | . . . . . . . . . . . . . . . . . . . . . . . . . . . . . . . 1 Average Backups 15 | 2 7 14 16 24 25 17 7 9 8 6 6 7 7 9 6 5 4 4 5 4 4 4 5 5 7 12 19 20 19 20 20 Power . | . . 2 . 1 2 . . 1 1 . . . . . . . . . 1 . . . . . . . 1 . . . . Propulsion 2 | . 1 2 4 8 8 3 . . . . . . . . . . . . . . . . . . . 1 1 2 1 . . Utility 7 | . . . 1 5 6 6 4 4 4 3 3 4 6 7 4 3 3 3 3 3 3 3 4 4 6 7 12 12 11 13 12 Weapon 4 | 1 3 7 8 8 7 4 1 2 2 1 1 2 1 2 1 1 1 . . . . . . . . 1 3 5 6 5 7 Tool/Special . | . . . . . . . . . . . . . . . . . . . . . . . . . . . . . . . . Unused Backups 91 | . 2 2 6 3 . 17 15 . 1 . . 1 . . 1 . . 1 . 3 . . 1 . 3 1 20 1 4 2 7 Power 5 | . . 1 2 . . . . . . . . . . . . . . . . . . . . . . . 2 . . . . Propulsion 15 | . . . . 1 . 4 4 . . . . . . . . . . . . 1 . . . . . . 3 1 1 . . Utility 45 | . . . . . . 9 6 . 1 . . 1 . . 1 . . 1 . 2 . . 1 . 3 . 13 . 2 1 4 Weapon 22 | . 2 1 4 2 . 3 4 . . . . . . . . . . . . . . . . . . 1 1 . 1 1 2 Tool/Special 4 | . . . . . . 1 1 . . . . . . . . . . . . . . . . . . . 1 . . . 1 Average Slot Usage (%) 90 | . 98 100 84 98 100 88 98 93 92 78 80 80 79 90 83 94 79 84 88 85 90 90 91 95 89 89 89 94 92 86 77 Engine 3 | . 14 14 8 9 11 6 . . . . . . . . 1 . . . . . . . . . . . . . . . . Core 4 | . . . . . . . 6 6 6 6 6 6 6 5 9 11 11 10 11 6 10 10 10 10 1 4 6 8 8 7 5 Reactor 1 | . . . . . . . . . . . . . . . . . . . . . . . . . 7 4 1 4 4 3 2 Treads 10 | . 28 28 33 33 33 29 . . . . . . . . . . . . . . . . . . . . . . . . . Hover 11 | . . . . . . . . . . . . . 8 8 5 3 . . . . . . . . . . 28 33 33 29 26 Flight 8 | . . . . . . . 32 33 32 26 26 26 20 23 21 30 30 33 33 25 25 25 27 30 27 27 6 . . . . Device 12 | . 14 14 10 14 1 2 5 6 6 18 20 20 11 6 11 17 12 11 11 9 15 15 14 15 10 9 17 24 19 22 21 Storage 5 | . 7 14 11 11 11 7 5 6 6 6 6 6 4 6 1 . . . . . . . . . 3 4 4 4 4 3 3 Processor 9 | . 5 . . 7 11 11 13 13 19 13 13 13 13 13 11 11 11 11 11 10 10 10 13 15 15 18 10 8 8 7 5 Hackware 4 | . . . . . 9 11 18 13 8 6 6 6 6 20 13 11 11 11 11 10 5 5 1 . 1 . . . 2 . . Protection 2 | . . . . . . . . 6 4 . . . 2 . . . . 5 5 9 10 10 10 10 8 7 3 4 3 3 2 Energy Cannon 2 | . . . . . . 5 . . . . . . 1 . 1 5 1 . . 4 5 5 2 . . . 2 3 1 2 3 Ballistic Gun 2 | . 28 27 1 . . . 4 . . . . . . 3 1 . . . . . . . . . . . . . 2 1 . Ballistic Cannon 3 | . . . 20 20 20 . . . . . . . . . . . . . . 3 . . . . . . 1 4 3 1 . Piercing Weapon 1 | . . . . . . 5 5 6 5 . . . . . . . . . . 4 5 5 10 15 13 7 . . . . . Peak Build Rating 316 | 6 10 12 20 23 23 36 72 67 74 55 56 59 61 69 81 81 79 83 83 127 127 124 140 136 155 163 282 303 304 316 308 Average Rating 133 | 5 8 10 15 22 22 24 62 66 68 51 51 52 52 62 69 79 69 77 83 114 124 122 129 136 151 157 258 293 293 303 260 On Entrance 96 | . 6 10 12 20 22 21 36 67 67 46 51 51 53 53 69 81 79 73 83 83 127 122 123 136 136 153 161 282 290 291 291 Avg Prop Armor Cover (%) 16 | . . . . . . 36 . . . . . . 10 10 7 5 4 4 3 3 . . . . . . 3 . . 1 26 Naked Turns . | . . . . . . . . . . . . . . . . . . . . . . . . . . . . . . . . Heaviest Build 142 | 9 32 34 92 102 102 100 30 30 30 23 21 21 34 24 26 27 27 30 26 48 48 48 48 43 54 62 127 115 126 142 137 Greatest Support 225 | 40 40 40 66 63 60 60 30 30 30 24 24 24 24 25 30 37 31 38 38 48 48 48 62 47 68 73 132 130 128 140 225 Greatest Overweight (x) 7 | . . . 1 1 1 7 . . . . . . 1 . 1 . . . . 1 . . 1 . . 1 1 . . 1 1 Average Overweight (x) . | . . . . 1 1 . . . . . . . . . . . . . . . . . . . . . . . . . . Largest Inventory Capacity 25 | 5 15 15 25 25 25 25 25 10 10 10 10 10 10 10 10 5 5 5 5 5 5 5 5 5 10 15 25 25 25 25 25 Average Capacity 17 | 5 9 15 17 25 25 18 9 10 10 10 10 10 8 10 6 5 5 5 5 5 5 5 5 5 8 13 23 25 25 25 23 Most Carried 25 | 3 14 15 24 25 25 25 19 10 10 10 8 10 10 10 10 5 5 5 5 5 4 5 5 5 10 15 25 25 25 25 25 Average Carried 17 | 2 7 14 16 24 25 17 8 9 9 7 7 9 8 9 6 4 4 4 5 4 4 4 5 5 7 12 22 24 23 24 23 Final Capacity 25 | 5 15 15 25 25 25 25 10 10 10 10 10 10 10 10 5 5 5 5 5 5 5 5 5 5 10 15 25 25 25 25 5 Final Carried 25 | 3 14 15 24 25 25 20 10 10 10 7 8 10 10 10 5 5 4 5 5 4 4 5 5 5 10 15 25 25 23 25 4 Class Distribution -------------------- 28% | Scavenger-Sprinter 21% | Commander-Mutant 15% | Mutant 6% | Hacker-Scout 4% | Ninja 4% | Sprinter 4% | Hacker-Sprinter 3% | Infiltrator-Scout Dominant Class ---------------- Mutant | -10/Materials Mutant | -10/Mines Mutant | -9/Materials Mutant | -9/Storage Commander-Mutant | -9/Recycling Commander-Mutant | -9/Scraptown Hacker-Sprinter | -6/Factory Hacker-Sprinter | -6/Waste Scout | -6/Factory Infiltrator-Scout | -6/Lower Caves Infiltrator-Scout | -6/Lower Caves Infiltrator-Scout | -6/Zion Mutant | -6/Deep Caves Derelict-Scout | -5/Proximity Caves Hacker-Scout | -5/Factory Hacker-Scout | -5/Upper Caves Derelict-Scout | -5/Upper Caves Derelict-Scout | -5/Zhirov Derelict-Scout | -4/Proximity Caves Hacker-Scout | -4/Factory Infiltrator-Ninja | -4/Upper Caves Infiltrator-Ninja | -4/Upper Caves Ninja | -4/Warlord Ninja | -3/Proximity Caves Ninja | -3/Research Ninja | -3/Quarantine Scavenger-Sprinter | -3/Protoforge Scavenger-Sprinter | -2/Research Scavenger-Sprinter | -2/Testing Sprinter | -1/Access Mutant | -1/Command Resources | -11 -10 -10 -9 -9 -9 -9 -6 -6 -6 -6 -6 -6 -6 -5 -5 -5 -5 -5 -4 -4 -4 -4 -4 -3 -3 -3 -3 -2 -2 -1 -1 ----------- Run | Yrd Mat Min Mat Sto Rec Scr Fac Was Fac Low Low Zio Dee Pro Fac Upp Upp Zhi Pro Fac Upp Upp War Pro Res Qua Frg Res Tes Acc Com Matter Collected 36046 | 356 255 285 573 1257 153 194 690 . 177 158 88 84 152 229 108 286 61 . . 387 40 20 . 98 397 102 18387 923 5183 4921 482 Remotely . | . . . . . . . . . . . . . . . . . . . . . . . . . . . . . . . . Salvage Created 57930 | 196 371 356 893 1140 91 191 792 . 282 18 36 . 96 . 244 45 . . . 378 . . . 90 603 542 24408 916 10631 13653 1958 Parts 2003 | 25 29 24 47 71 11 6 30 . 15 . 4 . 9 . 15 3 . . . 17 . . . 6 19 25 931 43 126 484 63 Haulers Intercepted 24 | . 1 . 3 6 . . 4 . 2 . . . . . . . . . . 3 . . . . 1 1 . . . 3 . Recyclers Shooed 10 | 1 2 . 1 5 . . . . . . . . . . . . . . . . . . . . . . . . . 1 . Parts Field Recycled . | . . . . . . . . . . . . . . . . . . . . . . . . . . . . . . . . Retrieved Matter . | . . . . . . . . . . . . . . . . . . . . . . . . . . . . . . . . Parts Self-Destructed 11 | . . . . . . . . . . . 4 . . . . . 1 . . . . . . 6 . . . . . . . Prevented . | . . . . . . . . . . . . . . . . . . . . . . . . . . . . . . . . Parts Restored 11 | . . . . . . . . . . . . . . . . . . . . . . . . . . . 11 . . . . Faulty 11 | . . . . . . . . . . . . . . . . . . . . . . . . . . . 11 . . . . Kills | -11 -10 -10 -9 -9 -9 -9 -6 -6 -6 -6 -6 -6 -6 -5 -5 -5 -5 -5 -4 -4 -4 -4 -4 -3 -3 -3 -3 -2 -2 -1 -1 ------- Run | Yrd Mat Min Mat Sto Rec Scr Fac Was Fac Low Low Zio Dee Pro Fac Upp Upp Zhi Pro Fac Upp Upp War Pro Res Qua Frg Res Tes Acc Com Combat Hostiles Destroyed 1009 | . 14 11 18 23 2 . 3 . . . 4 . 3 . 8 . . . . 1 . . . 3 2 3 498 9 145 240 22 Melee 44 | . . . . . . . 3 . . . . . . . . . . . . . . . . 3 2 3 32 . . 1 . Guns 154 | . 5 6 . . . . . . . . . . . . . . . . . . . . . . . . . . 105 37 1 Cannons 467 | . . . 14 23 2 . . . . . . . . . . . . . . 1 . . . . . . 279 9 36 96 7 AOE 275 | . 9 5 4 . . . . . . . 4 . 3 . 8 . . . . . . . . . . . 149 . . 85 8 Classes Destroyed 35 | 3 4 1 1 2 . 1 2 . . . . . 1 . . . . . . . . . . . . . 15 . 1 3 1 Worker 19 | 2 1 . 1 1 . . 1 . . . . . . . 1 . . . . . . . . . . 1 . . 3 7 1 Builder 20 | . . . . 2 1 . . . 1 . . . . . 2 . . . . 1 . . . . 1 . 1 2 2 7 . Tunneler 6 | 5 . 1 . . . . . . . . . . . . . . . . . . . . . . . . . . . . . Hauler 25 | . 1 . 3 6 . . 4 . 2 . . . . . . . . . . 3 . . . . 1 1 1 . . 3 . Recycler 22 | 1 1 1 4 5 1 . 1 . . . . . . . . . . . . . . . . . 2 1 . 3 . 2 . Carrier 18 | . . . . . . . . . . . . . . . . . . . . . . . . . . . 10 . . 8 . Mechanic 44 | . . . . 1 . . . . . . . . . . . . . . . . . . . . . . 23 1 10 9 . Operator 5 | . . . . . . . 1 . . . . . . . . . . . . . . . . . . 1 . . 3 . . Drone 26 | . . . . . . . . . . . . . . . . . . . . . . . . . . . 18 . . 8 . Watcher 29 | . 2 . . 1 . . 3 . 2 . . . . . . . . . . 2 . . . . 3 2 1 2 1 6 4 Swarmer 105 | . 12 7 4 6 . . . . . . 4 . . . 4 . . . . 1 . . . 3 . . 50 . 3 11 . Cutter 17 | . . . . . . . . . . . . . . . . . . . . . . . . . . . . . . 12 5 Saboteur 30 | . . . . . . . . . . . . . . . . . . . . . . . . . . . 7 . 6 17 . Grunt 244 | . 2 2 8 5 . 4 2 . . . . . . . 4 . . . . . . . . . . 2 80 . 65 70 . Brawler 40 | . . . 1 . . . . . . . . . . . . . . . . . . . . . . . 19 . 10 10 . Duelist 45 | . . . . . . . . . . . . . . . . . . . . . . . . . . . 22 . 11 12 . Protector 51 | . . . . . . . . . . . . . . . . . . . . . . . . . . . 35 . 11 5 . Researcher 11 | . . . . . . . . . . . . . . . . . . . . . . . . . . . 7 . 4 . . Sentry 54 | . . 2 5 12 2 . . . . . . . . . . . . . . . . . . . . . 10 3 4 16 . Demolisher 5 | . . . . . . . . . . . . . . . . . . . . . . . . . . . . . . 4 1 Specialist 4 | . . . . . . . . . . . . . . . . . . . . . . . . . . . . . . . 4 Hunter 61 | . . . . . . . . . . . . . . . . . . . . . . . . . . . 43 2 4 12 . Programmer 113 | . . . . . . . 1 . . . . . . . . . . . . . . . . . 1 1 52 3 16 35 4 Heavy 1 | . . . . . . . . . . . . . . . . . . . . . . . . . . . . . . 1 . Q-Series 5 | . . . . . . . . . . . . . . . . . . . . . . . . . . . . . 1 4 . Behemoth 3 | . . . . . . . . . . . . . . . . . . . . . . . . . . . . . . 2 1 M Guard 2 | . . . . . . . . . . . . . . . . . . . . . . . . . . . . . . . 2 Decapitator 8 | . . . . . . . . . . . . . . . . . . . . . . . . . . . 8 . . . . Immortal 4 | . . . . . . . . . . . . . . . . . . . . . . . . . . . 4 . . . . Combat Programmer 4 | . . . . . . . . . . . . . . . . . . . . . . . . . . . . . 2 . 2 Investigator 2 | . . . . . . . . . . . . . . . . . . . . . . . . . . . . . 1 1 . Striker 78 | . . . . . . . . . . . . . . . . . . . . . . . . . . . 64 . 5 9 . Executioner 97 | . . . . . . . . . . . . . . . . . . . . . . . . . . . 79 . 5 11 2 Alpha 7 3 | . . . . . . . . . . . . . . . . . . . . . . . . . . . 2 . 1 . . V-Series 1 | . . . . . . . . . . . . . . . . . . . . . . . . . . . 1 . . . . Protovariant H 1 | . . . . . . . . . . . . . . . . . . . . . . . . . . . . . 1 . . Scientist 1 | . . . . . . 1 . . . . . . . . . . . . . . . . . . . . . . . . . Elite 1 | . . . . . . . . . . . . . . . . . . . . . . . . . . . 1 . . . . Scrapoid 6 | . . . . . . . . . . . . . . . . . . . . . . . . . . . 6 . . . . Scraphulk 1 | . . . . . . . . . . . . . . . . . . . . . . . . . . . 1 . . . . Z-Technician 4 | . . . . . . . . . . . . . 4 . . . . . . . . . . . . . . . . . . Decomposer 1 | . . . . . . . . . . 1 . . . . . . . . . . . . . . . . . . . . . Assembled 2 | . . . . . . . . . . . . . 2 . . . . . . . . . . . . . . . . . . Best Kill Streak 43 | 3 6 4 9 7 1 . 3 . 1 . 4 . 3 . 7 . . . . 2 . . . 3 2 4 32 4 31 43 7 Combat Bots Only 38 | . 6 3 6 5 1 . 1 . . . 4 . 2 . 4 . . . . 1 . . . 3 1 2 31 3 25 38 7 Max Kills in Single Turn 7 | 1 4 3 3 2 1 1 1 . 1 1 3 . 1 . 7 . . . . 1 . . . 1 1 1 5 2 4 6 2 Gunslinging . | . . . . . . . . . . . . . . . . . . . . . . . . . . . . . . . . Exploded 6 | . 3 3 2 . . . . . . . 3 . 1 . 4 . . . . . . . . . . . 4 . . 6 2 Melee 1 | . . . . . . . 1 . . . . . . . . . . . . . . . . 1 1 1 1 . . 1 . Uniques/NPCs Destroyed 6 | . . . . . . . . . . . . . 1 . . . . . . . . . . . 1 . 1 1 . 1 1 Z-Imprinter (-6/Deep Caves) 6S-H0T (-3/Research) Superfortress (-3/Protoforge) DW-4LL (-2/Research) CL-0N3 (-1/Access) MAIN.C Shell (-1/Command) Combat | -11 -10 -10 -9 -9 -9 -9 -6 -6 -6 -6 -6 -6 -6 -5 -5 -5 -5 -5 -4 -4 -4 -4 -4 -3 -3 -3 -3 -2 -2 -1 -1 -------- Run | Yrd Mat Min Mat Sto Rec Scr Fac Was Fac Low Low Zio Dee Pro Fac Upp Upp Zhi Pro Fac Upp Upp War Pro Res Qua Frg Res Tes Acc Com Hostile Shots Fired 1896 | . 41 26 64 75 2 . 49 . 50 4 19 . 5 . 38 4 13 . 2 20 . 2 10 8 44 12 418 15 106 472 397 Missed 996 | . 10 10 14 19 2 . 30 . 31 2 10 . 1 . 17 2 3 . 2 11 . 1 9 4 10 5 235 9 67 298 194 Intercepted 9 | . . . . . . . . . . . . . . . . . . . . . . . . . . . . . . . 9 Deflected 2 | . . . . . . . . . . . . . . . . . . . . . . . . . . . 2 . . . . Hits 900 | . 31 16 50 56 . . 19 . 19 2 9 . 4 . 21 2 10 . . 9 . 1 1 4 34 7 183 6 39 174 203 Melee 36 | . . . 1 . . . . . . . . . . . . . . . . . . . . . . . 10 . . 10 15 Projectile 864 | . 31 16 49 56 . . 19 . 19 2 9 . 4 . 21 2 10 . . 9 . 1 1 4 34 7 173 6 39 164 188 AOE 17 | . . . . . . . . . . . . . . . . . . . . . . . . . 1 . . . 1 11 4 Critical Strikes 75 | . . . 3 3 . . 1 . . . . . . . . . . . . 1 . . . . 7 . 19 . 6 16 19 Actively Blocked 29 | . . . . . . . . . . . . . . . . . . . . 1 . . . . 7 . 8 . . 6 7 Part Disruptions 7 | . . . . . . . . . . . . . . . . . . . . . . . . . . . . . 2 3 2 Damage Taken 19508 | . 287 211 622 684 . . 362 . 611 39 142 . 183 . 373 39 202 . . 179 . 24 21 91 724 193 5285 165 633 2880 5558 Core 3533 | . 45 39 31 49 . . 216 . 148 . 33 . . . 78 19 38 . . 50 . . . 71 161 61 814 30 50 226 1374 Absorbed by Shields 4951 | . . . . 35 . . . . . . . . . . . . . . . . . . . . . . 1426 . 366 2509 615 Redirected to Shielding 268 | . . . . . . . . . . . . . . . . . . . . 23 . . . . 26 60 61 . . . 98 Ignored by Resistances 680 | . . . . . . . . . . . . . . . . . . . . . . . . . . . . . . . 680 Regen/Repaired (Parts) 1554 | . . . . . . . . . . . . 18 . . . . . . . 42 . . . . 72 146 . . 167 776 333 Core Remaining (%) 72 | 100 . 66 . . . 80 . . . . . . . 53 . . . . 86 . . . . 89 . . 10 . 94 . . Volleys Fired 1781 | 24 43 20 48 66 5 1 14 . 2 6 8 . 27 4 17 10 5 . 1 18 3 . . . . . 741 38 231 384 65 Largest 3 | 2 2 2 2 2 2 1 1 . 1 1 1 . 1 1 1 1 1 . 1 2 1 . . . . . 2 2 2 2 3 Hottest 360 | 40 46 46 74 74 74 . 85 . 85 85 85 . 85 85 98 98 98 . 43 156 105 . . . . . 250 250 250 360 360 Shots Fired 2332 | 48 82 38 92 130 10 1 15 . 2 6 8 . 27 4 18 10 5 . 1 20 3 . . . . . 927 51 278 456 100 Gun 449 | 48 78 36 2 . . . 4 . . . . . . . . . . . . . . . . . . . . . 139 124 18 Cannon 1836 | . . . 87 129 10 . 11 . 2 6 6 . 23 4 15 10 4 . . 20 3 . . . . . 926 51 139 312 78 Launcher 46 | . 4 2 3 1 . . . . . . 2 . 4 . 3 . 1 . 1 . . . . . . . 1 . . 20 4 Special 1 | . . . . . . 1 . . . . . . . . . . . . . . . . . . . . . . . . . Kinetic 1402 | 48 78 36 89 129 10 . 4 . . . . . . . . . . . . 6 . . . . . . 535 23 223 193 28 Thermal 868 | . . . . . . . 11 . 2 6 6 . 23 4 15 10 4 . . 14 3 . . . . . 391 28 55 243 53 Explosive 42 | . 4 2 3 1 . . . . . . 2 . 4 . 3 . 1 . 1 . . . . . . . 1 . . 20 . Electromagnetic 19 | . . . . . . . . . . . . . . . . . . . . . . . . . . . . . . . 19 Robot Hit Streak 41 | 7 14 5 8 14 10 3 . . . 4 . . 8 . . 4 . . . 2 . . . . . . 31 19 31 41 22 Robot Miss Streak 8 | 2 8 4 6 8 3 . . . . . . . 1 . . 2 . . . 1 . . . . . . 5 1 4 6 3 Penetration Max 4 | . . . . . . . . . . . . . . . . . . . . . . . . . . . 2 1 4 2 1 Secondary Targets 1 | . . 1 . . . . . . . . . . . . . . . . . . . . . . . . . . . . . Max Gunslinging Chain 1 | . . 1 . . . . . . . . . . . . . . . . . . . . . . . . . . . . . Shots Hit Robots 1705 | 26 40 19 51 109 9 13 25 . 7 1 . . 8 . . 6 . . . 10 . . . 3 17 16 682 40 212 344 67 Core Hits 1618 | 14 25 18 29 120 10 1 12 . 4 1 2 . 6 . 16 3 . . . 6 . . . 2 5 8 526 18 345 401 46 Critical Kills 232 | . . . . . . . . . . . . . . . . . . . . . . . . . . . 41 1 120 66 4 Critical Parts Destroyed 199 | . . . . . . 2 . . . . . . . . . . . . . . . . . . . . 6 . 133 58 . Critical Strikes 631 | . . . 3 . . 2 2 . 1 . . . . . . . . . . 2 . . . . 2 2 165 4 294 149 5 Meltdown 64 | . . . . . . . . . . . . . . . . . . . . . . . . . . . 39 1 4 16 4 Destroy 398 | . . . . . . . . . . . . . . . . . . . . . . . . . . . 9 . 264 125 . Blast 150 | . . . 3 . . . . . . . . . . . . . . . . 1 . . . . . . 109 3 26 8 . Corrupt 1 | . . . . . . . . . . . . . . . . . . . . . . . . . . . . . . . 1 Smash 2 | . . . . . . 2 . . . . . . . . . . . . . . . . . . . . . . . . . Sever 4 | . . . . . . . . . . . . . . . . . . . . . . . . . . . 4 . . . . Impale 6 | . . . . . . . 2 . 1 . . . . . . . . . . 1 . . . . 1 1 . . . . . Sunder 6 | . . . . . . . . . . . . . . . . . . . . . . . . . 1 1 4 . . . . Melee Attacks 371 | . . . . 9 . 12 52 1 26 . . . . . . . . . . 37 2 3 2 13 57 47 110 . . . . Impact 15 | . . . . . . 12 . . . . . . . . . . . . . 3 . . . . . . . . . . . Slashing 102 | . . . . 9 . . . . . . . . . . . . . . . . . . . . . 13 80 . . . . Piercing 163 | . . . . . . . 51 1 26 . . . . . . . . . . 34 2 3 1 8 24 13 . . . . . Entropic 90 | . . . . . . . . . . . . . . . . . . . . . . . 1 5 33 21 30 . . . . Sneak Attacks 65 | . . . . . . 12 9 . 3 . . . . . . . . . . 3 . . . 1 5 5 27 . . . . Combat Hostiles 6 | . . . . . . . 1 . . . . . . . . . . . . . . . . 1 1 . 3 . . . . Follow-up Attacks 18 | . . . . . . . . . . . . . . . . . . . . . . . . 1 4 5 8 . . . . Damage Inflicted 236443 | 248 910 625 1591 2218 267 646 1363 . 410 29 401 . 489 . 2335 195 . . . 560 . . . 331 1614 1576 136805 3925 15513 56726 7666 Guns 6231 | 248 500 289 36 . . . 7 . . . . . . . . . . . . . . . . . . . . . 3218 1506 427 Cannons 133159 | . . . 1142 2141 226 . . . . 29 . . 238 . . 195 . . . 133 . . . . . . 78148 3925 12295 29534 5153 Explosions 82933 | . 410 325 413 . . . . . . . 401 . 251 . 2335 . . . . . . . . . . . 51034 . . 25686 2078 Melee 13983 | . . . . . . 646 1356 . 410 . . . . . . . . . . 427 . . . 331 1614 1576 7623 . . . . Ramming 137 | . . 11 . 77 41 . . . . . . . . . . . . . . . . . . . . . . . . . 8 Kinetic 73543 | 248 500 289 1178 2141 226 . 7 . . . . . . . . . . . . 97 . . . . . . 45182 1987 13453 7582 653 Thermal 136390 | . . 146 . . . . . . . 29 . . 238 . 1918 195 . . . 36 . . . . . . 83683 1938 2060 39678 6469 Explosive 11822 | . 410 179 413 . . . . . . . 401 . 251 . 417 . . . . . . . . . . . 290 . . 9461 . Electromagnetic 541 | . . . . . . . . . . . . . . . . . . . . . . . . . . . . . . 5 536 Impact 869 | . . . . . . 646 . . . . . . . . . . . . . 196 . . . . . . 27 . . . . Slashing 4623 | . . . . . . . . . . . . . . . . . . . . . . . . . . 150 4473 . . . . Piercing 2644 | . . . . . . . 1356 . 410 . . . . . . . . . . 231 . . . 50 450 147 . . . . . Entropic 5874 | . . . . . . . . . . . . . . . . . . . . . . . . 281 1164 1279 3150 . . . . Highest Corruption 26 | . . . 10 11 11 . 2 11 26 26 26 26 . . 5 . . . . . . . . . 1 3 9 . 12 6 10 Average Corruption 8 | . . . 8 10 11 . 1 6 11 26 26 26 . . 4 . . . . . . . . . 1 2 7 . 8 3 6 Corruption Purged 20 | . . . . . . . . . 3 . . . . . 5 . . . . . . . . . . 3 9 . . . . Corruption Blocked . | . . . . . . . . . . . . . . . . . . . . . . . . . . . . . . . . Effects 417 | . . . 21 68 56 . 10 2 19 28 20 1 . . 12 . . . . . . . . . 3 5 73 . 45 39 15 Message Errors 100 | . . . 2 14 12 . 3 . 4 7 5 1 . . 5 . . . . . . . . . 1 3 21 . 10 9 3 Matter Fused 101 | . . . 4 17 17 . 1 1 8 7 8 . . . 2 . . . . . . . . . . . 20 . 10 3 3 Heat Flow Errors 52 | . . . 5 7 6 . 2 . 2 4 3 . . . 2 . . . . . . . . . . 1 6 . 5 8 1 Energy Discharges 48 | . . . 3 5 7 . . . 1 4 2 . . . 1 . . . . . . . . . . . 12 . 6 5 2 Parts Rejected 6 | . . . . 1 . . . . 1 . . . . . 1 . . . . . . . . . . . . . . . 3 Parts Fused 1 | . . . . 1 . . . . . . . . . . . . . . . . . . . . . . . . . . . Data Loss (minor) 60 | . . . 4 11 8 . 2 . 2 3 1 . . . . . . . . . . . . . 2 1 9 . 7 10 . Data Loss (major) 15 | . . . 2 2 4 . 1 . . 2 1 . . . . . . . . . . . . . . . 1 . 1 1 . Misfires 8 | . . . . 3 1 . 1 . . . . . . . 1 . . . . . . . . . . . . . 2 . . Alerts 7 | . . . . 1 . . . . . . . . . . . . . . . . . . . . . . 2 . 3 1 . Misdirections 5 | . . . . 2 . . . 1 1 1 . . . . . . . . . . . . . . . . . . . . . Weapon Failures 14 | . . . 1 4 1 . . . . . . . . . . . . . . . . . . . . . 2 . 1 2 3 Overload Shots 4 | . . . . . . . . . . . . . . . . . . . . . . . . . . . . . . 1 3 Overflow Damage 24216 | . 16 47 14 . . 233 184 . 108 . 86 . 90 . 106 . . . . 118 . . . 109 424 226 14616 242 748 5953 896 Projectiles 12707 | . . . . . . . . . . . . . 43 . . . . . . . . . . . . . 7923 242 748 2948 803 Explosions 8893 | . 16 47 14 . . . . . . . 86 . 47 . 106 . . . . . . . . . . . 5479 . . 3005 93 Melee 2616 | . . . . . . 233 184 . 108 . . . . . . . . . . 118 . . . 109 424 226 1214 . . . . Knockbacks 209 | . . . 6 24 1 4 . . . . . . . . . . . . . . . . . . . . 102 3 39 27 3 Impact 2 | . . . . . . 2 . . . . . . . . . . . . . . . . . . . . . . . . . Kinetic 194 | . . . 6 24 1 . . . . . . . . . . . . . . . . . . . . . 98 2 35 25 3 Secondary 13 | . . . . . . 2 . . . . . . . . . . . . . . . . . . . . 4 1 4 2 . Self-Inflicted Damage 335 | . . 31 40 . . . . . . . . . 68 . . . 18 . . . . . . . . . . . . 86 92 Shots 17 | . . 1 1 . . . . . . . . . 2 . . . 1 . . . . . . . . . . . . 4 8 Rammed 13 | . . 1 . 7 2 . . . . . . . . . . . . . . . . . . . . . . . . . 3 Targets Rammed 15 | . . 1 . 7 4 . . . . . . . . . . . . . . . . . . . . . . . . . 3 Kicked . | . . . . . . . . . . . . . . . . . . . . . . . . . . . . . . . . Crushed 2 | . . . . . 2 . . . . . . . . . . . . . . . . . . . . . . . . . . Highest Temperature 420 | . 12 10 248 277 237 . 248 25 169 335 314 . 152 126 250 181 185 96 114 150 132 84 162 192 286 45 419 420 336 375 273 Average Temperature 71 | . 4 4 42 82 90 . 53 14 34 123 119 . 51 52 74 63 54 23 50 32 43 42 37 73 70 45 86 104 92 101 95 Received Heat Transfer 1376 | . 96 48 249 242 . . 18 . 27 . . . 27 . 48 18 . . . 30 . . 12 . 9 27 246 18 22 124 115 Effects 19 | . . . . . . . . . . 2 . . . . . . . . . . . . . . 1 . 2 5 2 7 . Shutdowns 2 | . . . . . . . . . . . . . . . . . . . . . . . . . . . . 1 . 1 . Energy Bleed 8 | . . . . . . . . . . 2 . . . . . . . . . . . . . . . . 2 1 1 2 . Interference 9 | . . . . . . . . . . . . . . . . . . . . . . . . . 1 . . 3 1 4 . Siege Activations . | . . . . . . . . . . . . . . . . . . . . . . . . . . . . . . . . Martial Activations . | . . . . . . . . . . . . . . . . . . . . . . . . . . . . . . . . Shielding Activations . | . . . . . . . . . . . . . . . . . . . . . . . . . . . . . . . . Robots Disrupted . | . . . . . . . . . . . . . . . . . . . . . . . . . . . . . . . . Combat Hostiles . | . . . . . . . . . . . . . . . . . . . . . . . . . . . . . . . . Robots Corrupted 9 | . . . . . . 4 . . . . . . . . . . . . . 1 . . . . . . 1 . . 1 2 Combat Hostiles 4 | . . . . . . . . . . . . . . . . . . . . . . . . . . . 1 . . 1 2 Parts Fried 22 | . . . . . . 4 . . . . . . . . . . . . . 2 . . . . . . 6 . . 1 9 Impact Corruptions 10 | . . . . . . 6 . . . . . . . . . . . . . 1 . . . . . . 2 . . 1 . Robots Melted 72 | . . . . . . . . . . . . . . . . . . . . . . . . . . . 40 1 4 22 5 Combat Hostiles 64 | . . . . . . . . . . . . . . . . . . . . . . . . . . . 37 . 3 20 4 Parts Melted 131 | . . . . . . . . . . . . . . . 1 . . . . . . . . . . . 65 1 8 46 10 Heat Transferred 75346 | . . 200 . . . . . . . 37 . . 296 . 1300 300 . . . 37 . . . . . . 47681 808 925 21139 2623 Parts Sabotaged 4 | . . . . . . . . . . . . . . . . . . . . . . . . . . . 4 . . . . Parts Stolen . | . . . . . . . . . . . . . . . . . . . . . . . . . . . . . . . . Parts Stripped . | . . . . . . . . . . . . . . . . . . . . . . . . . . . . . . . . Power Chain Reactions 1 | . . . . . . . . . . . . . . . . . . . . . . . . . . . . . . . 1 Alert | -11 -10 -10 -9 -9 -9 -9 -6 -6 -6 -6 -6 -6 -6 -5 -5 -5 -5 -5 -4 -4 -4 -4 -4 -3 -3 -3 -3 -2 -2 -1 -1 ------- Run | Yrd Mat Min Mat Sto Rec Scr Fac Was Fac Low Low Zio Dee Pro Fac Upp Upp Zhi Pro Fac Upp Upp War Pro Res Qua Frg Res Tes Acc Com Maximum Alert Level 5 | . 1 1 1 2 . . 2 1 1 . . . . . 2 . . . . . . . . . . . 5 5 5 5 5 Low Security (%) 38 | 100 99 99 49 39 100 . 48 28 92 . . . . . 66 . . . . 100 . . . . 100 100 5 . . . . Level 1 8 | . . . 50 37 . . 27 71 7 . . . . . 28 . . . . . . . . . . . 2 . . . . Level 2 3 | . . . . 23 . . 23 . . . . . . . 5 . . . . . . . . . . . 1 . . . . Level 3 3 | . . . . . . . . . . . . . . . . . . . . . . . . . . . 12 . . . . Level 4 4 | . . . . . . . . . . . . . . . . . . . . . . . . . . . 15 . . . . Level 5 30 | . . . . . . . . . . . . . . . . . . . . . . . . . . . 62 100 50 33 100 High Security 10 | . . . . . . . . . . . . . . . . . . . . . . . . . . . . . 49 66 . Max Security . | . . . . . . . . . . . . . . . . . . . . . . . . . . . . . . . . Peak Influence 13562 | 10 200 205 342 446 192 . 597 209 256 . . . . . 469 . . . . 44 . . . . 52 91 13562 7855 7313 12589 8610 Initial 8056 | . . 43 4 121 162 . . 208 139 . . . . . . . . . . . . . . . 6 3 22 7628 4399 4387 8056 Average 3073 | . 87 107 176 264 59 . 233 205 127 . . . . . 131 . . . . 6 . . . . 15 46 5182 7784 5007 7612 8314 Influence Increases 34371 | 40 490 332 596 907 235 . 1387 1 464 30 90 . . . 795 15 . . . 289 . . . 70 234 294 14347 432 3874 8584 865 Destroy 0b10 Robot/C 19840 | . 280 220 360 520 60 . 580 . . . 80 . . . 160 . . . . 20 . . . 60 20 60 9240 160 2720 4860 440 Destroy 0b10 Robot/NC 1275 | 40 25 10 40 85 10 . 125 . 25 . . . . . 15 . . . . 30 . . . . 35 30 395 40 150 195 25 Destroy Leader 3340 | . 66 30 106 186 . . 166 . 8 . 10 . . . 20 . . . . 10 . . . 10 18 6 1462 64 342 758 78 Allied During Kill 86 | . . . . 36 31 . 19 . . . . . . . . . . . . . . . . . . . . . . . . Successful Hack 533 | . 23 . 15 22 14 . 12 . 54 . . . . . 97 . . . . 55 . . . . 50 84 76 . 27 . 4 Select Force Hacks 150 | . 30 . . . 120 . . . . . . . . . . . . . . . . . . . . . . . . . . Disable Machine 1680 | . . 45 30 45 . . 75 . . . . . . . 270 . . . . . . . . . . 60 630 45 210 225 45 Anti-Garrison Action 300 | . . . . . . . . . . . . . . . . . . . . . . . . . . . 150 . . 150 . Destroy Structure 3957 | . 36 27 30 13 . . 35 1 17 . . . . . 68 . . . . 84 . . . . 36 24 1254 93 305 1811 123 Partial Spotted 495 | . . . . . . . 75 . 15 . . . . . 60 . . . . 75 . . . . 30 30 60 15 30 60 45 Lose Combat Pursuer 2715 | . 30 . 15 . . . 300 . 345 30 . . . . 105 15 . . . 15 . . . . 45 . 1080 15 90 525 105 Influence Decreases 25800 | 40 377 432 321 777 653 . 790 399 464 229 90 . . . 326 334 149 1 . 255 34 . . 60 238 260 825 6172 4383 3308 4883 Entered New Map 18084 | . . 70 9 167 256 . . 389 60 74 . . . . . 174 29 1 . . 14 . . . 4 3 18 5934 3423 2926 4533 Time Decay 6101 | 40 377 362 301 580 397 . 415 10 254 155 90 . . . 306 160 90 . . 243 20 . . 60 234 170 747 238 350 342 160 Search Patrol Dispatched 100 | . . . . . . . . . 100 . . . . . . . . . . . . . . . . . . . . . . Lost Part 411 | . . . 11 10 . . . . 50 . . . . . 10 . 30 . . . . . . . . . 60 . 10 40 190 Lost Ally 111 | . . . . 20 . . 75 . . . . . . . 10 . . . . . . . . . . 6 . . . . . Purge Threat 993 | . . . . . . . 300 . . . . . . . . . . . . 12 . . . . . 81 . . 600 . . Squads Dispatched 206 | . 3 . 3 2 . . 22 . 8 . . . . . 14 . . . . 15 . . . . 5 3 8 6 35 78 4 Investigation 44 | . 1 . . . . . 12 . 4 . . . . . 9 . . . . 10 . . . . 2 1 5 . . . . Extermination 28 | . . . . . . . 5 . 2 . . . . . 2 . . . . 4 . . . . 3 2 . 1 3 5 1 Reinforcement 27 | . 2 . 3 2 . . 5 . 2 . . . . . 3 . . . . 1 . . . . . . 3 1 2 3 . Assault 100 | . . . . . . . . . . . . . . . . . . . . . . . . . . . . 4 30 63 3 Garrison 7 | . . . . . . . . . . . . . . . . . . . . . . . . . . . . . . 7 . Intercept . | . . . . . . . . . . . . . . . . . . . . . . . . . . . . . . . . Searches Triggered 1 | . . . . . . . . . 1 . . . . . . . . . . . . . . . . . . . . . . Unchained Authorized 6 | . . . . . . . . . . . . . . . . . . . . 1 . . . . 1 1 . 1 1 1 . Construction Impeded 3 | . . . 1 . . . 2 . . . . . . . . . . . . . . . . . . . . . . . . Haulers Reinforced 4 | . . . . . . . 2 . 1 . . . . . . . . . . . . . . . . . . . . 1 . Active Scanning Responses . | . . . . . . . . . . . . . . . . . . . . . . . . . . . . . . . . Cargo Convoy Interrupts 1 | . . . . . . . . . . . . . . . 1 . . . . . . . . . . . . . . . . Stealth | -11 -10 -10 -9 -9 -9 -9 -6 -6 -6 -6 -6 -6 -6 -5 -5 -5 -5 -5 -4 -4 -4 -4 -4 -3 -3 -3 -3 -2 -2 -1 -1 --------- Run | Yrd Mat Min Mat Sto Rec Scr Fac Was Fac Low Low Zio Dee Pro Fac Upp Upp Zhi Pro Fac Upp Upp War Pro Res Qua Frg Res Tes Acc Com Distress Signals 44 | . . 1 4 2 . . 9 . 2 . . . . . . . . . . 2 . . . . . . 15 . 2 4 3 Communications Jammed 8 | . . . . . . . . . . . . . . . . . . . . 2 . . . . 3 . 1 . 2 . . Distress Signals 8 | . . . . . . . . . . . . . . . . . . . . 2 . . . . 3 . 1 . 2 . . Times Spotted 1527 | . 24 11 26 36 2 . 29 6 28 3 12 . 3 . 50 8 11 . 1 23 . 1 7 7 14 10 671 10 198 279 57 Peak Tracking Total 24 | . 4 3 7 5 1 . 7 6 8 3 4 . 2 . 15 3 7 . 1 9 . 1 7 5 5 2 15 2 12 12 24 Tactical Retreats 121 | . 1 . 1 . . . 9 . 9 1 2 . . . 12 5 3 . . 3 . . . . 3 . 44 1 5 19 3 ECM-based Alert Blocks 73 | . . . . . . . . . . 1 5 . . . 40 8 11 . . 6 . . . . 2 . . . . . . Traps | -11 -10 -10 -9 -9 -9 -9 -6 -6 -6 -6 -6 -6 -6 -5 -5 -5 -5 -5 -4 -4 -4 -4 -4 -3 -3 -3 -3 -2 -2 -1 -1 ------- Run | Yrd Mat Min Mat Sto Rec Scr Fac Was Fac Low Low Zio Dee Pro Fac Upp Upp Zhi Pro Fac Upp Upp War Pro Res Qua Frg Res Tes Acc Com Traps Triggered 40 | . . . . 2 . . 4 . 3 . . . . . 1 . . . . 1 . . . . . 3 18 . . 7 1 Indirectly . | . . . . . . . . . . . . . . . . . . . . . . . . . . . . . . . . Trap Hack Attempts . | . . . . . . . . . . . . . . . . . . . . . . . . . . . . . . . . Triggered . | . . . . . . . . . . . . . . . . . . . . . . . . . . . . . . . . Disarmed . | . . . . . . . . . . . . . . . . . . . . . . . . . . . . . . . . Reprogrammed . | . . . . . . . . . . . . . . . . . . . . . . . . . . . . . . . . Reused 1 | . . . . . . . . . . . . . 1 . . . . . . . . . . . . . . . . . . Traps Extracted . | . . . . . . . . . . . . . . . . . . . . . . . . . . . . . . . . Installed 1 | . . . . . . . . . . . . . 1 . . . . . . . . . . . . . . . . . . Triggered . | . . . . . . . . . . . . . . . . . . . . . . . . . . . . . . . . Most Traps Carried 1 | . . . . . . 1 1 1 1 1 1 1 1 . . . . . . . . . . . . . . . . . . Machines | -11 -10 -10 -9 -9 -9 -9 -6 -6 -6 -6 -6 -6 -6 -5 -5 -5 -5 -5 -4 -4 -4 -4 -4 -3 -3 -3 -3 -2 -2 -1 -1 ---------- Run | Yrd Mat Min Mat Sto Rec Scr Fac Was Fac Low Low Zio Dee Pro Fac Upp Upp Zhi Pro Fac Upp Upp War Pro Res Qua Frg Res Tes Acc Com Machines Disabled 128 | . 1 3 2 3 . . 5 . . . . . 2 . 18 . . . . . . . 1 . . 4 52 3 15 16 3 Max in Single Turn 16 | . 1 2 1 1 . . 1 . . . . . 1 . 16 . . . . . . . 1 . . 1 2 1 2 1 1 Garrison Access 8 | . . . . . . . 1 . 1 . . . . . 1 . . . . 2 . . . . 1 . 1 . . 1 . Machines Repaired . | . . . . . . . . . . . . . . . . . . . . . . . . . . . . . . . . Machines Dismantled . | . . . . . . . . . . . . . . . . . . . . . . . . . . . . . . . . Machines Sabotaged . | . . . . . . . . . . . . . . . . . . . . . . . . . . . . . . . . Overloaded Fab Kills . | . . . . . . . . . . . . . . . . . . . . . . . . . . . . . . . . Hacking | -11 -10 -10 -9 -9 -9 -9 -6 -6 -6 -6 -6 -6 -6 -5 -5 -5 -5 -5 -4 -4 -4 -4 -4 -3 -3 -3 -3 -2 -2 -1 -1 --------- Run | Yrd Mat Min Mat Sto Rec Scr Fac Was Fac Low Low Zio Dee Pro Fac Upp Upp Zhi Pro Fac Upp Upp War Pro Res Qua Frg Res Tes Acc Com Machines Accessed 172 | . 6 . 2 8 10 3 22 . 11 1 1 . . . 22 . . 4 . 27 . 2 3 . 13 13 12 1 7 3 1 Terminals 81 | . 5 . 2 7 6 . 9 . 4 . 1 . . . 9 . . . . 8 . 1 . . 5 9 6 . 6 2 1 Fabricators 17 | . . . . . . . 3 . 1 . . . . . 2 . . . . 6 . . . . 1 . 4 . . . . Repair Stations 8 | . . . . 1 . . . . . . . . . . 2 . . . . 2 . . . . 2 1 . . . . . Recycling Units 33 | . 1 . . . 4 . 6 . 4 . . . . . 8 . . . . 6 . . . . 1 . 1 1 . 1 . Scanalyzers 12 | . . . . . . . 3 . 1 . . . . . . . . . . 3 . . . . 2 2 . . 1 . . Garrison Access 9 | . . . . . . . 1 . 1 . . . . . 1 . . . . 2 . . . . 2 1 1 . . . . Total Hacks 434 | . 15 . 5 18 23 19 64 . 30 1 1 . . . 44 . . 17 . 75 . 8 4 . 35 32 18 1 19 4 1 Successful 266 | . 12 . 3 10 18 19 37 . 12 1 1 . . . 29 . . 17 . 42 . 8 4 . 16 11 13 1 11 . 1 Failed 167 | . 3 . 2 8 5 . 27 . 18 . . . . . 15 . . . . 32 . . . . 19 21 5 . 8 4 . Catastrophic 28 | . . . . 1 . . 6 . 1 . . . . . 1 . . . . 7 . . . . 1 7 2 . . 2 . Database Lockouts 1 | . . . . . . . . . . . . . . . . . . . . 1 . . . . . . . . . . . Manual 178 | . 10 . . 13 13 . 29 . 16 . . 4 . . 20 . . . . 34 . . . . 17 9 7 . 6 . . Terminals 217 | . 13 . 5 16 17 . 29 . 12 . 1 . . . 19 . . . . 35 . 7 . . 14 21 7 . 17 3 1 Fabricators 54 | . . . . . . . 8 . 2 . . . . . 8 . . . . 22 . . . . 5 . 9 . . . . Repair Stations 19 | . . . . 2 . . . . . . . . . . 3 . . . . 4 . . . . 5 5 . . . . . Recycling Units 55 | . 2 . . . 6 . 14 . 10 . . . . . 9 . . . . 8 . . . . 3 . 1 1 . 1 . Scanalyzers 33 | . . . . . . . 12 . 5 . . . . . . . . . . 4 . . . . 5 5 . . 2 . . Garrison Access 14 | . . . . . . . 1 . 1 . . . . . 5 . . . . 2 . . . . 3 1 1 . . . . Terminal Hacks 121 | . 4 . 3 3 6 19 8 . 2 1 1 . . . 9 . . 17 . 14 . 8 4 . 3 7 2 . 9 . 1 Record 33 | . . . . . . 18 . . . . 1 . . . . . . 5 . . . 7 2 . . . . . . . . Part Schematic 7 | . . . . . 1 . . . . . . . . . . . . 4 . 1 . . . . . . . . 1 . . Robot Analysis 5 | . . . . 1 . . . . . . . . . . . . . 4 . . . . . . . . . . . . . Prototype ID Bank 16 | . 1 . . . 3 . 1 . . . . . . . 2 . . 4 . 3 . . . . . 2 . . . . . Open Door 8 | . . . . 2 . . . . . 1 . . . . . . . . . . . 1 2 . 1 . . . . . 1 Branch Access Points 4 | . . . . . . . . . 1 . . . . . 1 . . . . 1 . . . . 1 . . . . . . Emergency Access Points 1 | . 1 . . . . . . . . . . . . . . . . . . . . . . . . . . . . . . Terminal Index 3 | . 1 . . . . . . . . . . . . . 1 . . . . . . . . . . . . . 1 . . Scanalyzer Index 1 | . . . . . . . . . . . . . . . . . . . . . . . . . . 1 . . . . . Alert Level 1 | . . . . . . . . . . . . . . . . . . . . . . . . . . . . . 1 . . Unreport Threat 9 | . . . . . . . 2 . . . . . . . . . . . . 1 . . . . . 2 . . 4 . . Locate Traps 3 | . 1 . . . . . . . . . . . . . 1 . . . . 1 . . . . . . . . . . . Recall Investigation 3 | . . . . . . . 2 . . . . . . . . . . . . 1 . . . . . . . . . . . Recall Extermination 2 | . . . . . . . . . . . . . . . . . . . . 1 . . . . . . . . 1 . . Recall Reinforcements 1 | . . . . . . . 1 . . . . . . . . . . . . . . . . . . . . . . . . Hauler Manifests 11 | . . . 2 . . . 1 . 1 . . . . . 2 . . . . 2 . . . . 1 1 . . 1 . . Registered Components 3 | . . . . . 1 . 1 . . . . . . . . . . . . 1 . . . . . . . . . . . Registered Prototypes 2 | . . . . . . . . . . . . . . . 1 . . . . 1 . . . . . . . . . . . Zone Layout 6 | . . . 1 . 1 . . . . . . . . . 1 . . . . 1 . . . . . 1 1 . . . . Proto ID Catalog 2 | . . . . . . 1 . . . . . . . . . . . . . . . . . . . . 1 . . . . Fabricator Hacks 25 | . . . . . . . 2 . 2 . . . . . 4 . . . . 8 . . . . 2 . 7 . . . . Network Status 1 | . . . . . . . . . . . . . . . . . . . . 1 . . . . . . . . . . . Load Schematic 15 | . . . . . . . 2 . 1 . . . . . 2 . . . . 5 . . . . 1 . 4 . . . . Build 9 | . . . . . . . . . 1 . . . . . 2 . . . . 2 . . . . 1 . 3 . . . . Repair Station Hacks 8 | . . . . . . . . . . . . . . . 3 . . . . 2 . . . . . 3 . . . . . Scan Component 3 | . . . . . . . . . . . . . . . . . . . . 1 . . . . . 2 . . . . . Repair 2 | . . . . . . . . . . . . . . . . . . . . 1 . . . . . 1 . . . . . Refit 3 | . . . . . . . . . . . . . . . 3 . . . . . . . . . . . . . . . . Recycling Unit Hacks 5 | . . . . . 1 . 2 . . . . . . . . . . . . 1 . . . . . . . 1 . . . Retrieve Components 5 | . . . . . 1 . 2 . . . . . . . . . . . . 1 . . . . . . . 1 . . . Scanalyzer 17 | . . . . . . . 9 . 2 . . . . . . . . . . 1 . . . . 3 . . . 2 . . Insert Component 7 | . . . . . . . 3 . 1 . . . . . . . . . . 1 . . . . 1 . . . 1 . . Analyze 4 | . . . . . . . 2 . 1 . . . . . . . . . . . . . . . . . . . 1 . . Retrieve Study 6 | . . . . . . . 4 . . . . . . . . . . . . . . . . . 2 . . . . . . Garrison Access Hacks 6 | . . . . . . . 1 . 1 . . . . . 1 . . . . 2 . . . . 1 . . . . . . Seal Access 6 | . . . . . . . 1 . 1 . . . . . 1 . . . . 2 . . . . 1 . . . . . . Unauthorized Hacks 84 | . 8 . . 7 11 . 15 . 5 . . . . . 12 . . . . 14 . . . . 7 1 4 . . . . Terminals 39 | . 7 . . 7 7 . 4 . 1 . . . . . 4 . . . . 2 . . . . 4 1 2 . . . . Track 3 | . . . . . . . 1 . . . . . . . 1 . . . . . . . . . . . 1 . . . . Assimilate 6 | . 1 . . . . . 1 . . . . . . . 2 . . . . 1 . . . . . 1 . . . . . Botnet 12 | . 1 . . 2 2 . 1 . 1 . . . . . 1 . . . . 1 . . . . 2 . 1 . . . . Operators 2 | . . . . . . . 1 . . . . . . . . . . . . . . . . . 1 . . . . . . Skim 16 | . 5 . . 5 5 . . . . . . . . . . . . . . . . . . . 1 . . . . . . Fabricators 11 | . . . . . . . 3 . . . . . . . . . . . . 6 . . . . 1 . 1 . . . . Prioritize 3 | . . . . . . . . . . . . . . . . . . . . 2 . . . . 1 . . . . . . Haulers 2 | . . . . . . . 1 . . . . . . . . . . . . 1 . . . . . . . . . . . Recompile 6 | . . . . . . . 2 . . . . . . . . . . . . 3 . . . . . . 1 . . . . Repair Stations 1 | . . . . . . . . . . . . . . . . . . . . . . . . . 1 . . . . . . Patch 1 | . . . . . . . . . . . . . . . . . . . . . . . . . 1 . . . . . . Recycling Units 33 | . 1 . . . 4 . 8 . 4 . . . . . 8 . . . . 6 . . . . 1 . 1 . . . . Reject 1 | . . . . . . . 1 . . . . . . . . . . . . . . . . . . . . . . . . Mask 1 | . . . . . . . 1 . . . . . . . . . . . . . . . . . . . . . . . . Tunnel 5 | . 1 . . . 4 . . . . . . . . . . . . . . . . . . . . . . . . . . Fedlink 26 | . . . . . . . 6 . 4 . . . . . 8 . . . . 6 . . . . 1 . 1 . . . . Scanalyzers . | . . . . . . . . . . . . . . . . . . . . . . . . . . . . . . . . Garrison Access . | . . . . . . . . . . . . . . . . . . . . . . . . . . . . . . . . Data Cores Recovered 4 | . . . . . . . . . . . . . . . . . . . . . . . . . . 1 . . 3 . . Used 2 | . . . . . . . . . . . . . . . . . . . . . . . . . . . . . 2 . . Hacking Detections 109 | . 5 . 1 6 5 . 15 . 7 . . . . . 14 . . . . 16 . 1 . . 9 12 8 . 6 3 1 Full Trace Events 9 | . . . . . . . 4 . . . . . . . 1 . . . . 1 . . . . . 1 2 . . . . Feedback Events . | . . . . . . . . . . . . . . . . . . . . . . . . . . . . . . . . Feedback Blocked . | . . . . . . . . . . . . . . . . . . . . . . . . . . . . . . . . Robot Schematics Acquired 55 | . . . . . . . . . . . . . . . . . . . . . . . . . . . 5 . 3 47 . Robots Built . | . . . . . . . . . . . . . . . . . . . . . . . . . . . . . . . . Authchips . | . . . . . . . . . . . . . . . . . . . . . . . . . . . . . . . . Time . | . . . . . . . . . . . . . . . . . . . . . . . . . . . . . . . . Total Robot Build Rating . | . . . . . . . . . . . . . . . . . . . . . . . . . . . . . . . . Part Schematics Acquired 66 | . . . . . 1 8 20 . 8 . . . . . . . . 4 . 1 . . . . . . 13 . 11 . . Parts Built 10 | . . . . . . . . . 1 . . . . . 2 . . . . 1 . . . . 2 . 4 . . . . Authchips 6 | . . . . . . . . . 1 . . . . . 1 . . . . 2 . . . . 1 . 1 . . . . Time 660 | . . . . . . . . . 152 . . . . . 202 . . . . 126 . . . . 29 . 151 . . . . Total Part Build Rating 61 | . . . . . . . . . 5 . . . . . 10 . . . . 6 . . . . 14 . 26 . . . . Part Studies Acquired 6 | . . . . . . . 4 . . . . . . . . . . . . . . . . . 2 . . . . . . Parts Repaired 2 | . . . . . . . . . . . . . . . . . . . . 1 . . . . . 1 . . . . . Time 103 | . . . . . . . . . . . . . . . . . . . . 25 . . . . . 78 . . . . . Parts Recycled . | . . . . . . . . . . . . . . . . . . . . . . . . . . . . . . . . Recycled Matter . | . . . . . . . . . . . . . . . . . . . . . . . . . . . . . . . . Retrieved Matter . | . . . . . . . . . . . . . . . . . . . . . . . . . . . . . . . . Retrieved Components 4 | . . . . . . . 1 . . . . . . . . . . . . 3 . . . . . . . . . . . Parts Scanalyzed 4 | . . . . . . . 2 . 1 . . . . . . . . . . . . . . . . . . . 1 . . Part Schematics Acquired 4 | . . . . . . . 2 . 1 . . . . . . . . . . . . . . . . . . . 1 . . Parts Damaged 1 | . . . . . . . 1 . . . . . . . . . . . . . . . . . . . . . . . . Bothacking | -11 -10 -10 -9 -9 -9 -9 -6 -6 -6 -6 -6 -6 -6 -5 -5 -5 -5 -5 -4 -4 -4 -4 -4 -3 -3 -3 -3 -2 -2 -1 -1 ------------ Run | Yrd Mat Min Mat Sto Rec Scr Fac Was Fac Low Low Zio Dee Pro Fac Upp Upp Zhi Pro Fac Upp Upp War Pro Res Qua Frg Res Tes Acc Com Used RIF Installer . | . . . . . . . . . . . . . . . . . . . . . . . . . . . . . . . . Robots Hacked 1 | . . . . . . . 1 . . . . . . . . . . . . . . . . . . . . . . . . Non-combat 1 | . . . . . . . 1 . . . . . . . . . . . . . . . . . . . . . . . . Combat . | . . . . . . . . . . . . . . . . . . . . . . . . . . . . . . . . Robot Hacks Applied 1 | . . . . . . . 1 . . . . . . . . . . . . . . . . . . . . . . . . find_chute 1 | . . . . . . . 1 . . . . . . . . . . . . . . . . . . . . . . . . Relay Couplers Released 4 | . . . . . . . . . . . . . . . . . . . . . . . . . . . 3 . . 1 . Machine Destruction 4 | . . . . . . . . . . . . . . . . . . . . . . . . . . . 3 . . 1 . Fabnet Peak Effective % . | . . . . . . . . . . . . . . . . . . . . . . . . . . . . . . . . Robots Rewired 1 | . . . . . . . 1 . . . . . . . . . . . . . . . . . . . . . . . . Allies Hacked 1 | . . . . . . . . . . . . . . . 1 . . . . . . . . . . . . . . . . Hacks Repelled . | . . . . . . . . . . . . . . . . . . . . . . . . . . . . . . . . Allies | -11 -10 -10 -9 -9 -9 -9 -6 -6 -6 -6 -6 -6 -6 -5 -5 -5 -5 -5 -4 -4 -4 -4 -4 -3 -3 -3 -3 -2 -2 -1 -1 -------- Run | Yrd Mat Min Mat Sto Rec Scr Fac Was Fac Low Low Zio Dee Pro Fac Upp Upp Zhi Pro Fac Upp Upp War Pro Res Qua Frg Res Tes Acc Com Total Allies 35 | . . . . 10 . 1 2 18 . . . . . . 2 . . . . 1 . . . . . 1 . . . . . Largest Group 18 | . . . . 10 9 9 7 18 . . . . . . 2 . . . . 1 . . . . . 1 . . . . . Highest-Rated Group 638 | . . . . 88 80 117 149 638 . . . . . . 52 . . . . 10 . . . . . 10 . . . . . Highest-Rated Ally 78 | . . . . 16 16 78 78 50 . . . . . . 26 . . . . 10 . . . . . 10 . . . . . Total Orders 2 | . . . . . . 2 . . . . . . . . . . . . . . . . . . . . . . . . . STAY 1 | . . . . . . 1 . . . . . . . . . . . . . . . . . . . . . . . . . FOLLOW 1 | . . . . . . 1 . . . . . . . . . . . . . . . . . . . . . . . . . Ally Attacks 132 | . . . . 27 7 . 72 26 . . . . . . . . . . . . . . . . . . . . . . . Total Damage 3464 | . . . . 168 55 . 2802 439 . . . . . . . . . . . . . . . . . . . . . . . Kills 48 | . . . . 4 1 . 41 2 . . . . . . . . . . . . . . . . . . . . . . . Allies Corrupted 4 | . . . . . . 4 . . . . . . . . . . . . . . . . . . . . . . . . . Allies Melted 5 | . . . . . . . 1 . . . . . . . . . . . . . . . . . . . 4 . . . . Intel | -11 -10 -10 -9 -9 -9 -9 -6 -6 -6 -6 -6 -6 -6 -5 -5 -5 -5 -5 -4 -4 -4 -4 -4 -3 -3 -3 -3 -2 -2 -1 -1 ------- Run | Yrd Mat Min Mat Sto Rec Scr Fac Was Fac Low Low Zio Dee Pro Fac Upp Upp Zhi Pro Fac Upp Upp War Pro Res Qua Frg Res Tes Acc Com Active Infowar (turns) 27509 | 83 1242 837 263 1009 1375 2586 1224 28 556 552 432 258 702 180 795 330 190 53 128 1045 166 139 321 133 676 355 7010 504 1567 2282 488 Optics 24235 | . 508 . . 959 1375 2585 . . 516 552 432 258 702 180 795 330 190 53 128 1045 166 139 321 133 662 355 7010 504 1567 2282 488 Sensors 8275 | . . . . . . . 1200 28 554 552 432 258 702 179 756 330 190 53 128 1044 166 139 321 133 641 300 169 . . . . Zeronet 756 | . . . . . . . . . . . . . . . . . . . . . . . . . . . . . 756 . . Structural 2107 | . . . . . . 1 1 . . 523 431 258 157 . 271 330 39 . . . . . . . . . . 96 . . . Seismic 2425 | 83 1242 837 263 . . . . . . . . . . . . . . . . . . . . . . . . . . . . T.N.C. 259 | . . . . 259 . . . . . . . . . . . . . . . . . . . . . . . . . . . Machine Analysis 24 | . . . . . . . 24 . . . . . . . . . . . . . . . . . . . . . . . . Cloaking 2460 | . . . . . . . . . . . . . . . . . . . . . . . . . . . 477 462 509 874 138 Jamming 2792 | . . . . . . . . . . . . . . . . . . . . 271 166 139 321 133 600 321 297 212 332 . . ECM 2315 | . . . . . . . . . . 45 114 1 1 . 551 289 190 52 128 595 84 138 104 . 23 . . . . . . Robot Analysis Total 102 | . . . . 1 . . . . . . . . . . . . . 4 . . . . . . . . . . . 97 . Derelict Logs Recovered 19 | . . 3 . . . . . . . 2 3 1 . 2 . 2 2 . 2 . 1 1 . . . . . . . . . Drone Launches . | . . . . . . . . . . . . . . . . . . . . . . . . . . . . . . . . Drone Recoveries . | . . . . . . . . . . . . . . . . . . . . . . . . . . . . . . . . Exploration | -11 -10 -10 -9 -9 -9 -9 -6 -6 -6 -6 -6 -6 -6 -5 -5 -5 -5 -5 -4 -4 -4 -4 -4 -3 -3 -3 -3 -2 -2 -1 -1 ------------- Run | Yrd Mat Min Mat Sto Rec Scr Fac Was Fac Low Low Zio Dee Pro Fac Upp Upp Zhi Pro Fac Upp Upp War Pro Res Qua Frg Res Tes Acc Com Turns Passed 31244 | 168 1242 837 831 1797 1375 4847 1257 28 556 552 432 258 702 180 795 330 190 53 128 1045 166 139 321 133 676 355 7010 504 1567 2282 488 Spaces Moved 45204 | 58 594 475 357 612 552 3162 3173 102 1668 779 870 902 927 496 2294 685 518 148 301 2431 555 491 918 395 1944 924 11710 906 1630 3859 768 Core 1868 | 3 . . . . . 1824 . . . . . . . . . . . . . . . . . . . . . . . . 41 Treads 3876 | 55 594 475 357 612 552 1228 . . . . . . . . . . . . . . . . . . . . . . . . 3 Legs . | . . . . . . . . . . . . . . . . . . . . . . . . . . . . . . . . Wheels 109 | . . . . . . 109 . . . . . . . . . . . . . . . . . . . . . . . . . Hover 15506 | . . . . . . . . . . . . . . . . . . . . . . . . . . . 8387 906 1630 3859 724 Flight 23845 | . . . . . . 1 3173 102 1668 779 870 902 927 496 2294 685 518 148 301 2431 555 491 918 395 1944 924 3323 . . . . Fastest Speed 5 | 50 160 160 160 240 240 50 23 23 23 26 26 26 26 28 23 21 23 23 23 22 25 25 5 20 6 18 5 32 32 29 29 Average Speed 45 | 154 160 160 176 240 240 141 26 23 23 26 26 26 49 28 27 22 24 24 24 25 25 25 23 20 20 22 26 32 32 29 33 Slowest Speed 454 | 160 160 160 240 240 240 454 27 23 26 26 26 26 94 29 96 23 25 25 25 103 25 25 98 20 21 94 93 32 32 81 160 Overloaded Moves 244 | . . . . . . . 7 . . . . . . . . . . . . . . . 9 . 5 42 181 . . . . Propulsion Burnouts . | . . . . . . . . . . . . . . . . . . . . . . . . . . . . . . . . Robots Hopped 127 | . . . . . . . 10 . 21 2 6 . . . 31 2 5 . 1 17 . . . . 11 6 15 . . . . Potential Cave-ins 11 | . . . . . . . 2 . . . . . . . . . . . . . . . . . . . 9 . . . . Cave-ins Triggered 2 | . . . . . . . . . 1 . . . . . . . . . . . . . . . . . 1 . . . . Teleports 2 | . . . . . . . . . . . . . . . . . . . . . . . . . . . 2 . . . . Exploration Rate (%) 69 | 3 99 84 41 88 98 90 56 73 35 89 94 86 85 72 59 93 72 61 56 60 75 66 94 74 39 92 86 16 89 51 39 Regions Visited 31 Branch Regions 21 Pre-discovered Areas 24 | . 1 1 . 2 6 4 1 . . 1 1 1 . 2 . . 1 3 . . . . . . . . . . . . . Known Exits Taken 23 | . . . 1 1 1 . . . 1 1 1 1 1 1 1 1 1 1 1 1 1 1 1 1 1 1 1 . 1 . . Unknown Exits Taken 6 | 1 1 1 . . . 1 . . . . . . . . . . . . . . . . . . . . . 1 . 1 . Scrap Searched 23 | . . . . . . 4 . . . 1 2 2 . 2 . 3 2 . . . 1 4 . 2 . . . . . . . Spaces Dug 592 | . 34 9 13 13 . . 24 1 15 4 24 . 46 2 32 1 18 . 19 32 2 3 1 7 18 12 106 9 35 95 17 Terrain Destroyed 1981 | . 42 27 30 13 . . 32 1 17 5 49 . 49 4 40 4 19 . 19 45 5 3 1 7 18 12 531 41 109 811 47 Melee 116 | . . . . 1 . . 21 1 15 . . . . . . . . . . 28 2 3 1 7 18 12 7 . . . . Projectile 709 | . . . 17 . . . 11 . 2 5 6 . 4 4 14 4 4 . . 17 3 . . . . . 243 41 106 196 32 AOE 1146 | . 42 27 13 12 . . . . . . 43 . 45 . 26 . 15 . 19 . . . . . . . 281 . . 608 15 Terrain Rammed . | . . . . . . . . . . . . . . . . . . . . . . . . . . . . . . . . Walls Destroyed . | . . . . . . . . . . . . . . . . . . . . . . . . . . . . . . . . Machines Disabled . | . . . . . . . . . . . . . . . . . . . . . . . . . . . . . . . . Actions | -11 -10 -10 -9 -9 -9 -9 -6 -6 -6 -6 -6 -6 -6 -5 -5 -5 -5 -5 -4 -4 -4 -4 -4 -3 -3 -3 -3 -2 -2 -1 -1 --------- Run | Yrd Mat Min Mat Sto Rec Scr Fac Was Fac Low Low Zio Dee Pro Fac Upp Upp Zhi Pro Fac Upp Upp War Pro Res Qua Frg Res Tes Acc Com Total 53758 | 90 810 515 470 780 586 3552 3456 104 1759 1121 1060 924 1150 525 2397 845 567 162 351 2746 573 498 1017 429 2140 1015 14938 1063 2471 4700 944 Wait 4422 | . 139 3 15 34 21 228 95 . 62 326 176 17 131 12 70 144 45 2 51 205 13 . 78 24 109 18 1578 76 485 236 29 Move 44938 | 57 593 474 356 611 551 3161 3154 101 1627 774 860 901 926 495 2236 680 508 147 298 2398 554 490 917 394 1921 911 11684 905 1628 3858 768 Hop 103 | . . . . . . . 9 . 19 2 3 . . . 26 2 4 . 1 15 . . . . 11 6 5 . . . . Pick Up 430 | 3 14 5 17 9 . 68 23 1 4 . 1 3 12 1 9 1 . 3 . 10 . 1 2 . 13 11 148 5 20 36 10 Fast Attach 163 | 6 1 . 2 6 . 4 7 . 3 . . . 7 2 3 2 2 2 . 14 . . 5 . 5 1 62 2 5 10 12 Attach 173 | . . . 1 1 . 4 9 . 4 6 4 . 15 . 8 . 2 1 . 5 . . . . 3 3 60 2 6 26 13 Detach 134 | . . . . 2 . 5 4 . 3 4 4 . 14 . 5 . 1 . . 3 . . 1 . 1 2 51 . 6 17 11 Swap 600 | . 12 6 17 19 4 12 42 . 7 2 4 2 5 9 14 2 . 5 . 9 1 4 6 . 30 14 236 29 39 55 15 Drop 461 | . 8 6 14 14 . 56 23 1 2 1 . 1 12 2 9 4 . 2 . 19 . . 6 . 12 5 176 6 26 39 17 Fire 1781 | 24 43 20 48 66 5 1 14 . 2 6 8 . 27 4 17 10 5 . 1 18 3 . . . . . 741 38 231 384 65 Melee 314 | . . . . 9 . 12 52 1 26 . . . . . . . . . . 35 2 3 2 11 35 34 92 . . . . Ram 3 | . . . . . . . . . . . . . . . . . . . . . . . . . . . . . . . 3 Kick . | . . . . . . . . . . . . . . . . . . . . . . . . . . . . . . . . Crush 12 | . . 1 . 7 4 . . . . . . . . . . . . . . . . . . . . . . . . . . Escape Stasis 220 | . . . . 2 . . 23 . . . . . . . . . . . . 15 . . . . . 10 105 . 25 39 1 Rewire 2 | . . . . . 1 . 1 . . . . . . . . . . . . . . . . . . . . . . . . Trap 1 | . . . . . . . . . . . . . 1 . . . . . . . . . . . . . . . . . . Miscellaneous 1 | . . . . . . 1 . . . . . . . . . . . . . . . . . . . . . . . . . Route ------- -11/Scrapyard -10/Materials (discovered 6 exits: *Mat x3 / [*Min x2] / Sub) -10/Mines -9/Materials (discovered 4 exits: Mat x2 / *Min / *Sto) -9/Storage (discovered 2 exits: Mat / *Rec) -9/Recycling (discovered 2 exits: *Fac / *Scr) -9/Scraptown (discovered 2 exits: *Fac x2) -6/Factory (discovered 4 exits: *Fac x2 / *Low x2) -6/Waste -6/Factory (discovered 2 exits: *Low x2) -6/Lower Caves -6/Lower Caves (discovered 2 exits: *Fac / *Zio) -6/Zion (discovered 2 exits: *Dee / *Pro) -6/Deep Caves -5/Proximity Caves -5/Factory (discovered 7 exits: *Fac x3 / *Upp x2 / Ext x2) -5/Upper Caves -5/Upper Caves -5/Zhirov -4/Proximity Caves -4/Factory (discovered 4 exits: *Res x2 / *Upp x2) -4/Upper Caves -4/Upper Caves (discovered 2 exits: *Res / *War) -4/Warlord -3/Proximity Caves -3/Research (discovered 4 exits: *Res / Arm / *Qua x2) -3/Quarantine (discovered 3 exits: *Res / [*Sec] / *Frg) -3/Protoforge -2/Research (discovered 3 exits: *Acc x2 / *Tes) -2/Testing -1/Access (discovered 2 exits: *Sur / *Com) -1/Command History --------- Turn | Location | Event 11 | -11/Scrapyard | Discovered new exit (range 16) 169 | -11/Scrapyard | Entered Materials 311 | -10/Materials | Build established: Mutant 411 | -10/Materials | Discovered new exit (range 8) 590 | -10/Materials | Discovered new exit (range 16) 670 | -10/Materials | Discovered new exit (range 9) 954 | -10/Materials | Discovered new exit (range 13) 1201 | -10/Materials | Discovered new exit (range 14) 1278 | -10/Materials | Learned 2 Storage zone layouts 1343 | -10/Materials | Identified exit to Subcaves 1343 | -10/Materials | Learned location of 2 exits from Materials 1367 | -10/Materials | Loaded intel: 13 trap records 1369 | -10/Materials | Learned Storage terminal intel 1384 | -10/Materials | Learned Storage emergency access door positions 1411 | -10/Materials | Entered Mines 1416 | -10/Mines | Met a Derelict bent on vengeance 1521 | -10/Mines | Learned location of Zion (-6) 1667 | -10/Mines | Discovered new exit (range 16) 1821 | -10/Mines | Learned Materials trap positions 1910 | -10/Mines | Joined a pair of Derelicts in attacking an 0b10 outpost 1937 | -10/Mines | Assembled infested the area 2035 | -10/Mines | Found a Scrap Suit stashed away for nefarious purposes 2077 | -10/Mines | Learned 2 Materials zone layouts 2248 | -10/Mines | Entered Materials 2248 | -9/Materials | Evolved 2 slots: Propulsion x1, Utility x1 2249 | -9/Materials | Identified exit to Mines 2249 | -9/Materials | Identified exit to Storage 2250 | -9/Materials | Identified exit to Materials 2252 | -9/Materials | Loaded intel: 9 trap records 2630 | -9/Materials | System corruption reached 10% 3079 | -9/Materials | Entered Storage 3082 | -9/Storage | Loaded intel: 13 terminal locations 4150 | -9/Storage | Learned Materials recycling unit intel 4192 | -9/Storage | Learned Materials trap positions 4225 | -9/Storage | Learned Materials garrison access intel 4247 | -9/Storage | Identified exit to Recycling 4259 | -9/Storage | Learned Materials non-interactive machine intel 4262 | -9/Storage | Learned location of Recycling (-9) 4263 | -9/Storage | Learned location of 1 exit from Recycling 4283 | -9/Storage | Loaded intel: 20 trap records 4310 | -9/Storage | Learned Materials security intel 4357 | -9/Storage | Assisted by bots powering up and referring to "LRC-V3" 4653 | -9/Storage | Build established: Commander-Mutant 4729 | -9/Storage | Learned location of Armory (-3) 4846 | -9/Storage | Used back door to open Recycling access 4876 | -9/Storage | Entered Recycling 4876 | -9/Recycling | Accompanied by 9 allies 4877 | -9/Recycling | Identified exit to Factory 5961 | -9/Recycling | Identified exit to Scraptown 6017 | -9/Recycling | Learned location of Mines (-9) 6032 | -9/Recycling | Learned location of Mines (-8) 6057 | -9/Recycling | Learned location of 1 exit from Recycling 6094 | -9/Recycling | Learned location of 1 exit from Storage 6176 | -9/Recycling | Scanned before Scraplab entrance 6209 | -9/Recycling | Entered Scraplab 6251 | -9/Recycling | Entered Scraptown 6251 | -9/Scraptown | Accompanied by 9 allies 6251 | -9/Scraptown | System corruption cleaned by C-Scrubber 7018 | -9/Scraptown | Discovered new exit (range 11) 7107 | -9/Scraptown | Visited Junk Repository 7166 | -9/Scraptown | Heard Great Nut preacher, LISTEN AND RECITE! 7200 | -9/Scraptown | Visited Cave Peace 7238 | -9/Scraptown | Visited UFD Registry 7238 | -9/Scraptown | Registered with UFD as "Smoothshaft" 7327 | -9/Scraptown | Visited Cyclists 7344 | -9/Scraptown | Entered Cyclist Reading Room 7382 | -9/Scraptown | Visited Red Mages 7420 | -9/Scraptown | Visited Assassins FH 7502 | -9/Scraptown | Visited Observation Area 7543 | -9/Scraptown | Visited Comm Corps 7797 | -9/Scraptown | Visited Derelict Rescue Squad 7817 | -9/Scraptown | Found DRS Beacon 7899 | -9/Scraptown | Visited Junk Repository 8264 | -9/Scraptown | Visited Botcube Research 8310 | -9/Scraptown | Visited Supply Room 8370 | -9/Scraptown | Visited Scrapoid Research Area 8396 | -9/Scraptown | Visited Cartography Club 8442 | -9/Scraptown | Visited Chapter 10 8490 | -9/Scraptown | Visited Science Guys 8588 | -9/Scraptown | Visited Curators Association 8830 | -9/Scraptown | Found ID Mask 8843 | -9/Scraptown | Murdered 4 allies 8931 | -9/Scraptown | Tech Extrapolator generated special schematic: Deep Structural Scanner 9003 | -9/Scraptown | Tech Extrapolator generated special schematic: Machine Rigger 9260 | -9/Scraptown | Found Surveybot 17 Chip 9281 | -9/Scraptown | Learned location of Archives (-5) 9281 | -9/Scraptown | Learned 16 Factory zone layouts 9281 | -9/Scraptown | Learned 8 Access zone layouts 9281 | -9/Scraptown | Learned 4 Storage zone layouts 9281 | -9/Scraptown | Learned 20 Proximity Caves zone layouts 9281 | -9/Scraptown | Learned 24 Proximity Caves zone layouts 9281 | -9/Scraptown | Learned 4 Armory zone layouts 9281 | -9/Scraptown | Learned Factory emergency access door positions 9281 | -9/Scraptown | Learned location of 1 exit from Lower Caves 9281 | -9/Scraptown | Learned location of 2 exits from Lower Caves 9281 | -9/Scraptown | Learned location of 2 exits from Proximity Caves 9298 | -9/Scraptown | Found Deep Structural Scanner 9329 | -9/Scraptown | Found Lrg. Botcube 10052 | -9/Scraptown | Found Scrap Suit 10591 | -9/Scraptown | Lrg. Botcube activated 10627 | -9/Scraptown | Lrg. Botcube completed mutation into treaded form, armed with 4 cannons. 10638 | -9/Scraptown | Attached CPS modules to Large Mutated Botcube. 10996 | -9/Scraptown | Met Optimus 10996 | -9/Scraptown | Accepted into 0bPrime 11068 | -9/Scraptown | Discovered new exit (range 3) 11098 | -9/Scraptown | Entered Factory 11098 | -6/Factory | Accompanied by 6 allies 11098 | -6/Factory | Evolved 6 slots: Propulsion x2, Utility x4 11099 | -6/Factory | Identified exit to Lower Caves 11100 | -6/Factory | Identified exit to Factory 11297 | -6/Factory | Discovered exit to Factory (range 2) 11503 | -6/Factory | Build established: Hacker-Sprinter 11544 | -6/Factory | Tech Extrapolator generated special schematic: Energy Deflector 11665 | -6/Factory | Loaded intel: 8 recycling unit locations 11679 | -6/Factory | Learned location of Protoforge (-3) 11686 | -6/Factory | Spotted B-75 Beast 11710 | -6/Factory | Found Unknown Protection 11710 | -6/Factory | Identified Powered Armor 12355 | -6/Factory | Manually triggered Chute Trap 12355 | -6/Factory | Sucked down chute 12355 | -6/Factory | Entered Waste 12365 | -6/Waste | Met Warlord forces unprepared to attack 12369 | -6/Waste | Spotted C-40 Crusher 12370 | -6/Waste | EMP discharged 12370 | -6/Waste | System corruption reached 10% 12372 | -6/Waste | Spotted C-40 Crusher 12374 | -6/Waste | Spotted C-40 Crusher 12374 | -6/Waste | Spotted C-40 Crusher 12377 | -6/Waste | Spotted C-40 Crusher 12378 | -6/Waste | Spotted C-40 Crusher 12380 | -6/Waste | Discovered new exit (range 14) 12383 | -6/Waste | Identified exit to Factory 12383 | -6/Waste | Entered Factory 12705 | -6/Factory | Loaded intel: 8 recycling unit locations 12733 | -6/Factory | Search patrols dispatched 12748 | -6/Factory | Build established: Scout 12800 | -6/Factory | Fabricated Cld. Cesium-ion Thruster? 12925 | -6/Factory | Crushed by falling debris 12939 | -6/Factory | Entered Lower Caves 12940 | -6/Lower Caves | Identified exit to Lower Caves 12954 | -6/Lower Caves | Learned location of 1 exit from Factory 12956 | -6/Lower Caves | Lost 5 parts (1n3u1w) 13047 | -6/Lower Caves | Encountered a Warlord checkpoint 13065 | -6/Lower Caves | Learned location of Extension (-5) 13329 | -6/Lower Caves | Build established: Infiltrator-Scout 13491 | -6/Lower Caves | Entered another Lower Caves area 13492 | -6/Lower Caves | Identified exit to Zion 13676 | -6/Lower Caves | Encountered a Warlord checkpoint 13680 | -6/Lower Caves | Learned Factory emergency access door positions 13781 | -6/Lower Caves | Learned Factory stockpile data 13923 | -6/Lower Caves | Entered Zion 13924 | -6/Zion | Identified exit to Proximity Caves 13930 | -6/Zion | Given the Hacking Drone Bay 13931 | -6/Zion | Found Prototype Device 13937 | -6/Zion | System corruption cleaned by Quarantine Array 13937 | -6/Zion | Identified Hacking Drone Bay 13975 | -6/Zion | Received a visual enhancement algorithm 14006 | -6/Zion | Learned Factory stockpile data 14009 | -6/Zion | Acquired unknown access codes intercepted by a Zionite 14049 | -6/Zion | Turned away by Imprinter 14073 | -6/Zion | Found GAL Module 14177 | -6/Zion | Opened final containment barrier to the Deep Caves 14179 | -6/Zion | Discovered new exit (range 10) 14181 | -6/Zion | Saw the warning signs outside the Deep Caves entrance 14181 | -6/Zion | Identified exit to Deep Caves 14181 | -6/Zion | Entered Deep Caves 14182 | -6/Deep Caves | Identified exit to Proximity Caves 14238 | -6/Deep Caves | Attacked by Z-Imprinter 14244 | -6/Deep Caves | Destroyed Z-Imprinter 14317 | -6/Deep Caves | Z-Facility disabled 14467 | -6/Deep Caves | Found Prototype Protection 14467 | -6/Deep Caves | Identified Zio. Heavy Carapace 14701 | -6/Deep Caves | Spotted AG-28307 14716 | -6/Deep Caves | Spotted AG-43023 14883 | -6/Deep Caves | Entered Proximity Caves 14953 | -5/Proximity Caves | Found DCF Scrap (12 items) 14994 | -5/Proximity Caves | Spotted B-75 Beast 15063 | -5/Proximity Caves | Entered Factory 15063 | -5/Factory | Evolved 2 slots: Power x1, Propulsion x1 15064 | -5/Factory | Identified exit to Factory 15144 | -5/Factory | Discovered exit to Factory (range 5) 15174 | -5/Factory | Loaded intel: 8 recycling unit locations 15258 | -5/Factory | Build established: Derelict-Scout 15509 | -5/Factory | Fabricated Cld. Cesium-ion Thruster (x1) 15553 | -5/Factory | Spotted B-75 Beast 15594 | -5/Factory | Cargo convoy interrupted 15615 | -5/Factory | Build established: Hacker-Scout 15672 | -5/Factory | Discovered exit to Factory (range 12) 15785 | -5/Factory | Identified exit to Upper Caves 15785 | -5/Factory | Identified exit to Extension 15839 | -5/Factory | Fabricated Cld. Cesium-ion Thruster (x1) 15858 | -5/Factory | Entered Upper Caves 15975 | -5/Upper Caves | Attracted the attention of an 0b10 checkpoint 16021 | -5/Upper Caves | Learned Factory stockpile data 16077 | -5/Upper Caves | Found DCF Scrap (10 items) 16106 | -5/Upper Caves | Encountered a Warlord checkpoint 16142 | -5/Upper Caves | Learned 4 Factory zone layouts 16148 | -5/Upper Caves | Discovered new exit (range 18) 16187 | -5/Upper Caves | Identified exit to Upper Caves 16188 | -5/Upper Caves | Entered another Upper Caves area 16247 | -5/Upper Caves | Found Alien Artifact 16247 | -5/Upper Caves | Identified Core Expander 16247 | -5/Upper Caves | Installed Core Expander, added new Weapon slot 16258 | -5/Upper Caves | Lost 3 parts (1n1u1w) 16286 | -5/Upper Caves | Encountered a Warlord checkpoint 16329 | -5/Upper Caves | Discovered new exit (range 9) 16332 | -5/Upper Caves | Identified exit to Zhirov 16348 | -5/Upper Caves | Learned location of 1 exit from Factory 16362 | -5/Upper Caves | Learned location of Warlord (-4) 16378 | -5/Upper Caves | Entered Zhirov 16378 | -5/Zhirov | Discovered new exit (range 3) 16383 | -5/Zhirov | Met Zhirov 16388 | -5/Zhirov | Learned location of Quarantine (-3) 16388 | -5/Zhirov | Learned location of Testing (-2) 16390 | -5/Zhirov | Zhirov requested help retrieving the SGEMP Prototype 16394 | -5/Zhirov | Found Alien Artifact 16394 | -5/Zhirov | Identified Integrated Reactor 16394 | -5/Zhirov | Installed Integrated Reactor, increased core energy generation (+10) 16400 | -5/Zhirov | Found Alien Artifact 16430 | -5/Zhirov | Identified exit to Proximity Caves 16431 | -5/Zhirov | Entered Proximity Caves 16464 | -4/Proximity Caves | Learned Research terminal intel 16475 | -4/Proximity Caves | Build established: Derelict-Scout 16508 | -4/Proximity Caves | Learned Research trap positions 16559 | -4/Proximity Caves | Entered Factory 16559 | -4/Factory | Evolved 2 slots: Propulsion x1, Utility x1 16560 | -4/Factory | Identified exit to Upper Caves 16628 | -4/Factory | Repaired Lgt. Fission Core+? 16658 | -4/Factory | Spotted B-86 Titan 16714 | -4/Factory | Discovered new exit (range 5) 16716 | -4/Factory | Identified exit to Research 16722 | -4/Factory | Spotted B-86 Titan 16737 | -4/Factory | Found Imp. Powered Armor 16743 | -4/Factory | Found Imp. Powered Armor 16753 | -4/Factory | Discovered exit to Research (range 18) 16786 | -4/Factory | Central database locked down 16859 | -4/Factory | Found Prototype Processor 16859 | -4/Factory | Identified Exp. Terrain Scan Processor 16888 | -4/Factory | Loaded intel: 8 recycling unit locations 17137 | -4/Factory | Fabricated Cld. Nuclear Pulse Thruster? 17218 | -4/Factory | Identified Transdimensional Reconstructor 17529 | -4/Factory | Unchained authorized (6S-H0T) 17604 | -4/Factory | Entered Upper Caves 17663 | -4/Upper Caves | Learned location of 1 exit from Proximity Caves 17718 | -4/Upper Caves | Discovered new exit (range 4) 17719 | -4/Upper Caves | Identified exit to Upper Caves 17770 | -4/Upper Caves | Entered another Upper Caves area 17779 | -4/Upper Caves | Entered a destroyed Warlord outpost 17785 | -4/Upper Caves | Discovered exit to Research (range 14) 17798 | -4/Upper Caves | Encountered a Warlord checkpoint 17816 | -4/Upper Caves | Learned Research stockpile data 17824 | -4/Upper Caves | Discovered new exit (range 9) 17829 | -4/Upper Caves | Identified exit to Warlord 17901 | -4/Upper Caves | Learned Research stockpile data 17901 | -4/Upper Caves | Learned Research emergency access door positions 17901 | -4/Upper Caves | Learned Armory trap positions 17901 | -4/Upper Caves | Learned 6 Lower Caves zone layouts 17901 | -4/Upper Caves | Learned location of 1 exit from Research 17909 | -4/Upper Caves | Entered Warlord 17935 | -4/Warlord | Received a Watcher feed algorithm from an ecstatic Tinkerer 17985 | -4/Warlord | Build established: Infiltrator-Ninja 18041 | -4/Warlord | Rebuked by Warlord 18048 | -4/Warlord | Warlord's base attacked by MAIN.C 18062 | -4/Warlord | Found Prototype Piercing Weapon 18062 | -4/Warlord | Identified Vortex Lance 18064 | -4/Warlord | Found Vortex Lance 18097 | -4/Warlord | Found Prototype Processor 18097 | -4/Warlord | Identified Exp. Armor Integrity Analyzer 18161 | -4/Warlord | Opened side exit 18229 | -4/Warlord | Discovered new exit (range 9) 18229 | -4/Warlord | Identified exit to Proximity Caves 18230 | -4/Warlord | Entered Proximity Caves 18288 | -3/Proximity Caves | Build established: Ninja 18363 | -3/Proximity Caves | Entered Research 18363 | -3/Research | Evolved 2 slots: Propulsion x1, Utility x1 18364 | -3/Research | Identified exit to Research 18365 | -3/Research | Loaded intel: 68 trap records 18368 | -3/Research | Loaded intel: 23 terminal locations 18480 | -3/Research | Loaded intel: 5 recycling unit locations 18527 | -3/Research | Found Prototype Device 18549 | -3/Research | Identified exit to Armory 18549 | -3/Research | Identified exit to Quarantine 18582 | -3/Research | Unchained authorized (6S-H0T) 18588 | -3/Research | Fabricated Nanoactuators (x2) 18671 | -3/Research | Destroyed 6S-H0T 18735 | -3/Research | Spotted B-86 Titan 18738 | -3/Research | Spotted B-86 Titan 18821 | -3/Research | Spotted B-86 Titan 18843 | -3/Research | Identified Exp. Thermal Defense Suite 19039 | -3/Research | Entered Quarantine 19177 | -3/Quarantine | Found Alien Artifact 19218 | -3/Quarantine | Found Alien Impact Weapon 19261 | -3/Quarantine | Discovered exit to Research (range 22) 19295 | -3/Quarantine | Found Prototype Device 19314 | -3/Quarantine | Identified Adv. EM Shield 19331 | -3/Quarantine | Repaired Broken Imp. Powered Armor 19346 | -3/Quarantine | Found Alien Artifact 19348 | -3/Quarantine | Identified Subatomic Replicator 19348 | -3/Quarantine | Used Subatomic Replicator to create Alien Artifact 19352 | -3/Quarantine | Found Transdimensional Reconstructor 19373 | -3/Quarantine | Unchained authorized (DW-4LL) 19378 | -3/Quarantine | Spotted Fortress 19393 | -3/Quarantine | Discovered new exit (range 6) 19393 | -3/Quarantine | Discovered new exit (range 6) 19394 | -3/Quarantine | Identified exit to Protoforge 19394 | -3/Quarantine | Entered Protoforge 19438 | -3/Protoforge | Spotted Hotshot 19444 | -3/Protoforge | Spotted Hotshot 19495 | -3/Protoforge | Crushed by falling debris 19499 | -3/Protoforge | Spotted Overlord 19510 | -3/Protoforge | Spotted EXE-6 19510 | -3/Protoforge | Spotted EXE-6 19520 | -3/Protoforge | Identified Dimensional Node Initializer 19520 | -3/Protoforge | Initialized slip node 19525 | -3/Protoforge | UFD initiated attack on Protoforge (Readiness: Maximal) 19525 | -3/Protoforge | Loaded intel: 3 recycling unit locations 19545 | -3/Protoforge | Superfortress began startup sequence 19561 | -3/Protoforge | Optimus greeted in Protoforge 19561 | -3/Protoforge | Found Prototype Processor 19561 | -3/Protoforge | Identified Exp. Armor Integrity Analyzer 19564 | -3/Protoforge | Found Prototype Processor 19564 | -3/Protoforge | Identified Exp. Core Analyzer 19566 | -3/Protoforge | Found Exp. Core Analyzer 19568 | -3/Protoforge | Found Prototype Device 19586 | -3/Protoforge | Identified Supercharged TR 19586 | -3/Protoforge | Warped through subspace to slip node 19588 | -3/Protoforge | Optimus attacked Superfortress 19588 | -3/Protoforge | Warped through subspace 19588 | -3/Protoforge | Spotted EXE-6 19592 | -3/Protoforge | Spotted Striker 19604 | -3/Protoforge | Spotted Decapitator 19607 | -3/Protoforge | Destroyed Superfortress 19607 | -3/Protoforge | Spotted Executioner 19609 | -3/Protoforge | Destroyed Executioner 19611 | -3/Protoforge | Found Prototype Processor 19611 | -3/Protoforge | Identified Exp. Targeting Computer 19613 | -3/Protoforge | Found Prototype Energy Cannon 19613 | -3/Protoforge | Identified Cep. Plasma Driver 19617 | -3/Protoforge | Found Prototype Protection 19617 | -3/Protoforge | Identified Centrium Heavy Armor Plating 19619 | -3/Protoforge | Found Prototype Slashing Weapon 19619 | -3/Protoforge | Identified Exp. Terror Saw 19621 | -3/Protoforge | Found Prototype Device 19621 | -3/Protoforge | Identified Exp. Force Field 19624 | -3/Protoforge | Found Prototype Power Core 19624 | -3/Protoforge | Identified Cep. Zero-point Core 19627 | -3/Protoforge | Found Prototype Storage 19627 | -3/Protoforge | Identified Cep. NT7 Matterbank 19633 | -3/Protoforge | Lost 3 allies 19636 | -3/Protoforge | Lost 6 parts (1p3n1u1w) 19701 | -3/Protoforge | Fabricated Nanoactuators (x2) 19717 | -3/Protoforge | Identified Exp. Kinecellerator 19719 | -3/Protoforge | Fabricated Cld. Nuclear Pulse Thruster (x1) 19724 | -3/Protoforge | Fabricated Cld. Nuclear Pulse Thruster (x1) 19735 | -3/Protoforge | Found Prototype Launcher 19735 | -3/Protoforge | Identified Cep. Concussive Dispersal Blaster 19740 | -3/Protoforge | Found Prototype Device 19740 | -3/Protoforge | Identified Exp. Trap Extractor 19748 | -3/Protoforge | Spotted Striker 19749 | -3/Protoforge | Spotted Striker 19786 | -3/Protoforge | Found Prototype Device 19787 | -3/Protoforge | Spotted Immortal 19787 | -3/Protoforge | Spotted Immortal 19788 | -3/Protoforge | Spotted Decapitator 19788 | -3/Protoforge | Spotted Decapitator 19788 | -3/Protoforge | Spotted Decapitator 19788 | -3/Protoforge | Spotted Decapitator 19795 | -3/Protoforge | Destroyed Decapitator 19796 | -3/Protoforge | Destroyed Decapitator 19798 | -3/Protoforge | Destroyed Decapitator 19799 | -3/Protoforge | Destroyed Decapitator 19853 | -3/Protoforge | Forge Plexus network access discovered 19858 | -3/Protoforge | Spotted V244-b 19858 | -3/Protoforge | Spotted V301-l 19858 | -3/Protoforge | Spotted V492-k 19862 | -3/Protoforge | Spotted Decapitator 19862 | -3/Protoforge | Spotted Decapitator 19862 | -3/Protoforge | Spotted V116-g 19862 | -3/Protoforge | Spotted V248-m 19866 | -3/Protoforge | Spotted V723-j 19875 | -3/Protoforge | Build established: Scavenger-Sprinter 19906 | -3/Protoforge | Core integrity fell below 50% 19998 | -3/Protoforge | Destroyed 8 combat bots 20017 | -3/Protoforge | Destroyed Immortal 20053 | -3/Protoforge | Destroyed Immortal 20070 | -3/Protoforge | Spotted Decapitator 20082 | -3/Protoforge | Found Cep. Core Shell 20084 | -3/Protoforge | Found Cep. Phase Shift Module 20128 | -3/Protoforge | Found Cep. Antigrav Storage Unit 20147 | -3/Protoforge | Spotted V776-q 20147 | -3/Protoforge | Spotted V095-a 20147 | -3/Protoforge | Spotted V510-v 20163 | -3/Protoforge | Found Cep. Fieldthrust Drive 20167 | -3/Protoforge | Found Faulty Cep. Fieldthrust Drive 20168 | -3/Protoforge | Identified Crosscalibrator 20279 | -3/Protoforge | Spotted Decapitator 20279 | -3/Protoforge | Spotted Decapitator 20279 | -3/Protoforge | Spotted Decapitator 20279 | -3/Protoforge | Spotted Decapitator 20293 | -3/Protoforge | Spotted V950-o 20293 | -3/Protoforge | Spotted V760-x 20293 | -3/Protoforge | Spotted Immortal 20298 | -3/Protoforge | Spotted Immortal 20313 | -3/Protoforge | Found Cep. Deflector Sword 20314 | -3/Protoforge | Found Cep. Deflector Sword 20352 | -3/Protoforge | Found Cep. Deflector Sword 20407 | -3/Protoforge | Spotted Executioner 20465 | -3/Protoforge | Found Prototype Processor 20465 | -3/Protoforge | Identified Exp. Target Analyzer 20468 | -3/Protoforge | Found Prototype Device 20468 | -3/Protoforge | Identified Exp. Weapon Cycler 20471 | -3/Protoforge | Found Prototype Device 20471 | -3/Protoforge | Identified Exp. Shock Absorption System 20577 | -3/Protoforge | Spotted Striker 20584 | -3/Protoforge | Found Cep. NT7 Matterbank 20588 | -3/Protoforge | Found Exp. Kinecellerator 20591 | -3/Protoforge | Found Cep. Gyrokinetic System 20592 | -3/Protoforge | Found Cep. Gyrokinetic System 20597 | -3/Protoforge | Found Cep. Gyrokinetic System 20605 | -3/Protoforge | Spotted Executioner 20642 | -3/Protoforge | Spotted Executioner 20647 | -3/Protoforge | Destroyed Executioner 20657 | -3/Protoforge | Destroyed Executioner 20686 | -3/Protoforge | Lost 4 allies 20687 | -3/Protoforge | Found Faulty Cep. Gyrokinetic System 20690 | -3/Protoforge | Found Faulty Cep. Combat Aerolev Unit 20692 | -3/Protoforge | Found Cep. Combat Aerolev Unit 20789 | -3/Protoforge | Found Cep. Zero-point Core 20792 | -3/Protoforge | Found Cep. Zero-point Core 20840 | -3/Protoforge | Found Faulty Cep. Zero-point Core 20845 | -3/Protoforge | Found Cep. Zero-point Core 20888 | -3/Protoforge | Found Cep. Chromion Battery 20889 | -3/Protoforge | Found Cep. Chromion Battery 20891 | -3/Protoforge | Spotted V904-e 20922 | -3/Protoforge | Spotted Striker 20937 | -3/Protoforge | Found Faulty Cep. Gyrokinetic System 20938 | -3/Protoforge | Found Faulty Cep. Gyrokinetic System 20974 | -3/Protoforge | Destroyed Decapitator 20978 | -3/Protoforge | Destroyed Decapitator 20980 | -3/Protoforge | Destroyed Decapitator 20989 | -3/Protoforge | Destroyed Decapitator 21010 | -3/Protoforge | Found Cep. Network Penetrator 21119 | -3/Protoforge | Destroyed Immortal 21124 | -3/Protoforge | Destroyed Immortal 21127 | -3/Protoforge | Found Prototype Processor 21127 | -3/Protoforge | Identified Exp. Melee Analysis Suite 21131 | -3/Protoforge | Found Prototype Device 21131 | -3/Protoforge | Identified Cep. Antimissile System 21230 | -3/Protoforge | Spotted V438-j 21241 | -3/Protoforge | Destroyed V438-j 21253 | -3/Protoforge | Found Cep. Weapon Articulator 21256 | -3/Protoforge | Found Faulty Femtoactuators 21362 | -3/Protoforge | Found Cep. Recoil Nullifier 21366 | -3/Protoforge | Spotted V975-b 21441 | -3/Protoforge | Found Cep. Heavy Railcannon 21476 | -3/Protoforge | Spotted AP7-3 21480 | -3/Protoforge | Spotted AP7-3 21499 | -3/Protoforge | Destroyed AP7-3 21535 | -3/Protoforge | Destroyed AP7-3 21578 | -3/Protoforge | Found Cep. Cloak Mesh 21579 | -3/Protoforge | Found Faulty Cep. Cloak Mesh 21594 | -3/Protoforge | Found Faulty Cep. Thermoelectric Network 21596 | -3/Protoforge | Found Cld. Directed Potential Cannon 21603 | -3/Protoforge | Found Cld. Directed Potential Cannon 21631 | -3/Protoforge | Found Cep. Plasma Driver 21640 | -3/Protoforge | Found Faulty Cep. Heavy Railcannon 21811 | -3/Protoforge | Spotted Executioner 21838 | -3/Protoforge | Destroyed Executioner 21870 | -3/Protoforge | Found Exp. System Purifier 21980 | -3/Protoforge | Spotted Striker 21985 | -3/Protoforge | Destroyed Striker 21996 | -3/Protoforge | Found Exp. Core Analyzer 22016 | -3/Protoforge | Spotted Executioner 22017 | -3/Protoforge | Destroyed Executioner 22018 | -3/Protoforge | Spotted Striker 22038 | -3/Protoforge | Destroyed Striker 22100 | -3/Protoforge | Lost 3 allies 22113 | -3/Protoforge | Spotted Striker 22114 | -3/Protoforge | Spotted Executioner 22118 | -3/Protoforge | Destroyed Striker 22118 | -3/Protoforge | Spotted Striker 22121 | -3/Protoforge | Destroyed Executioner 22168 | -3/Protoforge | Spotted Immortal 22171 | -3/Protoforge | Spotted Striker 22171 | -3/Protoforge | Spotted Striker 22179 | -3/Protoforge | Destroyed Striker 22194 | -3/Protoforge | Spotted Executioner 22194 | -3/Protoforge | Destroyed Executioner 22196 | -3/Protoforge | Spotted Striker 22205 | -3/Protoforge | Spotted Executioner 22205 | -3/Protoforge | Spotted Striker 22217 | -3/Protoforge | Destroyed Executioner 22226 | -3/Protoforge | Spotted Executioner 22246 | -3/Protoforge | Destroyed Striker 22273 | -3/Protoforge | Lost 6 allies 22288 | -3/Protoforge | Destroyed 11 combat bots 22463 | -3/Protoforge | Found Cep. Rapid Grenade Launcher 22500 | -3/Protoforge | Found Cep. Chromion Battery 22549 | -3/Protoforge | Spotted Executioner 22549 | -3/Protoforge | Spotted Executioner 22554 | -3/Protoforge | Spotted Striker 22557 | -3/Protoforge | Destroyed Striker 22565 | -3/Protoforge | Destroyed Executioner 22567 | -3/Protoforge | Spotted Executioner 22583 | -3/Protoforge | Destroyed Executioner 22610 | -3/Protoforge | Lost 5 allies 22612 | -3/Protoforge | Destroyed 11 combat bots 22613 | -3/Protoforge | Spotted Striker 22619 | -3/Protoforge | Destroyed Striker 22629 | -3/Protoforge | Spotted Executioner 22630 | -3/Protoforge | Destroyed Striker 22631 | -3/Protoforge | Spotted Striker 22643 | -3/Protoforge | Destroyed Striker 22657 | -3/Protoforge | Destroyed Executioner 22680 | -3/Protoforge | Destroyed 9 combat bots 22685 | -3/Protoforge | Lost 3 allies 22689 | -3/Protoforge | Spotted Striker 22690 | -3/Protoforge | Destroyed Striker 22692 | -3/Protoforge | Spotted Striker 22715 | -3/Protoforge | Spotted Executioner 22716 | -3/Protoforge | Destroyed Executioner 22742 | -3/Protoforge | Spotted Striker 22742 | -3/Protoforge | Spotted Executioner 22746 | -3/Protoforge | Destroyed Executioner 22748 | -3/Protoforge | Destroyed Striker 22765 | -3/Protoforge | Spotted Hotshot 22765 | -3/Protoforge | Spotted Hotshot 22769 | -3/Protoforge | Destroyed 10 combat bots 22779 | -3/Protoforge | Spotted Striker 22780 | -3/Protoforge | Spotted Striker 22784 | -3/Protoforge | Spotted Executioner 22784 | -3/Protoforge | Spotted Striker 22842 | -3/Protoforge | Destroyed 7 combat bots 22906 | -3/Protoforge | Spotted Executioner 22906 | -3/Protoforge | Destroyed Executioner 22906 | -3/Protoforge | Spotted Striker 22907 | -3/Protoforge | Destroyed Striker 22909 | -3/Protoforge | Spotted Executioner 22911 | -3/Protoforge | Spotted Striker 22928 | -3/Protoforge | Destroyed Striker 22945 | -3/Protoforge | Destroyed Striker 22961 | -3/Protoforge | Destroyed Executioner 22973 | -3/Protoforge | Lost 4 allies 22982 | -3/Protoforge | Destroyed 15 combat bots 22982 | -3/Protoforge | Spotted Striker 22982 | -3/Protoforge | Spotted Striker 22982 | -3/Protoforge | Spotted Striker 22982 | -3/Protoforge | Spotted Striker 22984 | -3/Protoforge | Destroyed Striker 23015 | -3/Protoforge | Destroyed Striker 23020 | -3/Protoforge | Spotted Striker 23023 | -3/Protoforge | Spotted Striker 23025 | -3/Protoforge | Destroyed Striker 23077 | -3/Protoforge | UFD reported confirmed Drillbomb installation 23092 | -3/Protoforge | Destroyed 8 combat bots 23098 | -3/Protoforge | Spotted Executioner 23099 | -3/Protoforge | Destroyed Executioner 23100 | -3/Protoforge | Spotted Striker 23111 | -3/Protoforge | Destroyed Striker 23114 | -3/Protoforge | Spotted Executioner 23120 | -3/Protoforge | Destroyed Executioner 23125 | -3/Protoforge | Spotted Executioner 23126 | -3/Protoforge | UFD reported confirmed Drillbomb installation 23126 | -3/Protoforge | Destroyed Executioner 23128 | -3/Protoforge | Spotted Striker 23132 | -3/Protoforge | Spotted Striker 23133 | -3/Protoforge | Destroyed Striker 23133 | -3/Protoforge | Destroyed Striker 23154 | -3/Protoforge | Destroyed 13 combat bots 23186 | -3/Protoforge | Lost 4 allies 23193 | -3/Protoforge | Spotted Striker 23197 | -3/Protoforge | Destroyed Striker 23198 | -3/Protoforge | Spotted Executioner 23198 | -3/Protoforge | Destroyed Executioner 23200 | -3/Protoforge | Spotted Executioner 23201 | -3/Protoforge | Destroyed Executioner 23212 | -3/Protoforge | Destroyed Executioner 23221 | -3/Protoforge | Spotted Striker 23243 | -3/Protoforge | Destroyed Striker 23250 | -3/Protoforge | Spotted Executioner 23261 | -3/Protoforge | Destroyed Executioner 23278 | -3/Protoforge | Spotted Striker 23278 | -3/Protoforge | Spotted Striker 23280 | -3/Protoforge | Destroyed Striker 23287 | -3/Protoforge | Destroyed Striker 23288 | -3/Protoforge | Spotted Striker 23289 | -3/Protoforge | Spotted Striker 23290 | -3/Protoforge | Lost 12 allies 23290 | -3/Protoforge | Destroyed Striker 23298 | -3/Protoforge | Destroyed Striker 23315 | -3/Protoforge | Spotted Executioner 23323 | -3/Protoforge | Spotted Striker 23330 | -3/Protoforge | Destroyed 23 combat bots 23347 | -3/Protoforge | Destroyed Executioner 23367 | -3/Protoforge | Lost 5 allies 23526 | -3/Protoforge | UFD reported confirmed Drillbomb installation 23551 | -3/Protoforge | Spotted Executioner 23551 | -3/Protoforge | Spotted Striker 23559 | -3/Protoforge | Destroyed Striker 23559 | -3/Protoforge | Spotted Striker 23560 | -3/Protoforge | Spotted Executioner 23562 | -3/Protoforge | Destroyed Executioner 23564 | -3/Protoforge | Destroyed Executioner 23564 | -3/Protoforge | Destroyed Executioner 23593 | -3/Protoforge | Spotted Executioner 23595 | -3/Protoforge | Destroyed 11 combat bots 23596 | -3/Protoforge | Spotted Executioner 23615 | -3/Protoforge | Destroyed Executioner 23636 | -3/Protoforge | Spotted Executioner 23645 | -3/Protoforge | Destroyed Executioner 23647 | -3/Protoforge | Destroyed Executioner 23652 | -3/Protoforge | Spotted Executioner 23652 | -3/Protoforge | Spotted Striker 23673 | -3/Protoforge | Destroyed 12 combat bots 23679 | -3/Protoforge | Spotted Executioner 23691 | -3/Protoforge | Spotted Striker 23691 | -3/Protoforge | Destroyed Striker 23693 | -3/Protoforge | Spotted Striker 23700 | -3/Protoforge | Spotted Executioner 23701 | -3/Protoforge | Spotted Striker 23710 | -3/Protoforge | Destroyed Executioner 23729 | -3/Protoforge | Spotted Executioner 23732 | -3/Protoforge | Destroyed Executioner 23737 | -3/Protoforge | Spotted Striker 23741 | -3/Protoforge | Destroyed Striker 23785 | -3/Protoforge | Spotted Striker 23785 | -3/Protoforge | Spotted Striker 23787 | -3/Protoforge | Destroyed Striker 23787 | -3/Protoforge | Destroyed Striker 23793 | -3/Protoforge | Lost 16 allies 23793 | -3/Protoforge | Spotted Striker 23797 | -3/Protoforge | Spotted Striker 23808 | -3/Protoforge | Destroyed 16 combat bots 23811 | -3/Protoforge | Destroyed Striker 23811 | -3/Protoforge | Destroyed Striker 23822 | -3/Protoforge | Spotted Executioner 23823 | -3/Protoforge | Destroyed Executioner 23826 | -3/Protoforge | Spotted Executioner 23852 | -3/Protoforge | Destroyed 9 combat bots 23861 | -3/Protoforge | Lost 4 allies 23873 | -3/Protoforge | Destroyed Executioner 23901 | -3/Protoforge | Spotted Executioner 23919 | -3/Protoforge | Destroyed Executioner 23921 | -3/Protoforge | Spotted Executioner 23922 | -3/Protoforge | Spotted Executioner 23922 | -3/Protoforge | Spotted Striker 23925 | -3/Protoforge | Destroyed Executioner 23929 | -3/Protoforge | Destroyed Striker 23956 | -3/Protoforge | Destroyed Executioner 24047 | -3/Protoforge | Destroyed Executioner 24050 | -3/Protoforge | Destroyed Striker 24051 | -3/Protoforge | Spotted Executioner 24052 | -3/Protoforge | Spotted Striker 24071 | -3/Protoforge | Destroyed 21 combat bots 24083 | -3/Protoforge | Spotted Executioner 24084 | -3/Protoforge | Destroyed Executioner 24085 | -3/Protoforge | Spotted Executioner 24114 | -3/Protoforge | Destroyed Executioner 24114 | -3/Protoforge | Destroyed Executioner 24116 | -3/Protoforge | Spotted Executioner 24126 | -3/Protoforge | Destroyed Executioner 24128 | -3/Protoforge | Spotted Executioner 24130 | -3/Protoforge | Destroyed Executioner 24146 | -3/Protoforge | Spotted Executioner 24152 | -3/Protoforge | Destroyed Executioner 24171 | -3/Protoforge | Lost 5 allies 24173 | -3/Protoforge | Destroyed 18 combat bots 24175 | -3/Protoforge | Spotted Striker 24175 | -3/Protoforge | Spotted Executioner 24177 | -3/Protoforge | Spotted Executioner 24194 | -3/Protoforge | Destroyed Executioner 24219 | -3/Protoforge | Destroyed Striker 24220 | -3/Protoforge | P-80 Master assimilated allied AL-VJF(E) 24255 | -3/Protoforge | Spotted Executioner 24259 | -3/Protoforge | Spotted Striker 24267 | -3/Protoforge | Lost 3 allies 24283 | -3/Protoforge | Destroyed Executioner 24300 | -3/Protoforge | Spotted Striker 24300 | -3/Protoforge | Spotted Executioner 24300 | -3/Protoforge | Destroyed Striker 24300 | -3/Protoforge | Destroyed Executioner 24315 | -3/Protoforge | Spotted Executioner 24316 | -3/Protoforge | Destroyed Executioner 24316 | -3/Protoforge | Destroyed Striker 24362 | -3/Protoforge | Discovered exit to Research (range 22) 24366 | -3/Protoforge | Destroyed 17 combat bots 24375 | -3/Protoforge | Spotted Striker 24375 | -3/Protoforge | Spotted Striker 24376 | -3/Protoforge | Spotted Executioner 24391 | -3/Protoforge | Destroyed Striker 24402 | -3/Protoforge | Spotted Executioner 24404 | -3/Protoforge | Destroyed Executioner 24407 | -3/Protoforge | Spotted Striker 24408 | -3/Protoforge | Spotted Striker 24418 | -3/Protoforge | Destroyed Striker 24425 | -3/Protoforge | Destroyed Striker 24453 | -3/Protoforge | Destroyed Executioner 24463 | -3/Protoforge | Lost 6 allies 24474 | -3/Protoforge | Destroyed 16 combat bots 24475 | -3/Protoforge | Spotted Executioner 24475 | -3/Protoforge | Spotted Striker 24475 | -3/Protoforge | Spotted Executioner 24494 | -3/Protoforge | Spotted Executioner 24498 | -3/Protoforge | Destroyed Executioner 24500 | -3/Protoforge | P-80 Master assimilated allied 03FLB-D 24502 | -3/Protoforge | Destroyed Executioner 24520 | -3/Protoforge | Spotted Striker 24525 | -3/Protoforge | Destroyed 7 combat bots 24537 | -3/Protoforge | Destroyed Striker 24549 | -3/Protoforge | Lost 8 allies 24551 | -3/Protoforge | Destroyed Executioner 24554 | -3/Protoforge | Spotted Executioner 24620 | -3/Protoforge | Spotted Executioner 24621 | -3/Protoforge | Spotted Striker 24632 | -3/Protoforge | Destroyed Striker 24637 | -3/Protoforge | Destroyed Executioner 24652 | -3/Protoforge | Lost 4 allies 24684 | -3/Protoforge | Destroyed 7 combat bots 24696 | -3/Protoforge | Spotted Executioner 24696 | -3/Protoforge | Spotted Striker 24701 | -3/Protoforge | Spotted Executioner 24702 | -3/Protoforge | Spotted Executioner 24709 | -3/Protoforge | Destroyed Executioner 24716 | -3/Protoforge | Spotted Striker 24727 | -3/Protoforge | Destroyed Striker 24729 | -3/Protoforge | Destroyed Striker 24730 | -3/Protoforge | Spotted Striker 24732 | -3/Protoforge | Destroyed Striker 24734 | -3/Protoforge | Destroyed Executioner 24744 | -3/Protoforge | Core integrity fell below 20% 24765 | -3/Protoforge | Destroyed Executioner 24780 | -3/Protoforge | Spotted Striker 24781 | -3/Protoforge | Destroyed Striker 24786 | -3/Protoforge | Spotted Striker 24787 | -3/Protoforge | Spotted Executioner 24788 | -3/Protoforge | Lost 5 allies 24791 | -3/Protoforge | Destroyed Executioner 24791 | -3/Protoforge | Destroyed Striker 24793 | -3/Protoforge | Spotted Executioner 24794 | -3/Protoforge | Destroyed Executioner 24832 | -3/Protoforge | Spotted Striker 24832 | -3/Protoforge | Spotted Striker 24834 | -3/Protoforge | Destroyed Striker 24855 | -3/Protoforge | Destroyed 31 combat bots 24875 | -3/Protoforge | Spotted Striker 24875 | -3/Protoforge | Spotted Striker 24876 | -3/Protoforge | UFD reported confirmed Drillbomb installation 24877 | -3/Protoforge | Destroyed Executioner 24891 | -3/Protoforge | Spotted Striker 24906 | -3/Protoforge | Destroyed Striker 24911 | -3/Protoforge | UFD reported confirmed Drillbomb installation 24916 | -3/Protoforge | P-80 Master assimilated allied 03FMD-D 24919 | -3/Protoforge | Spotted Striker 24920 | -3/Protoforge | Destroyed Striker 24943 | -3/Protoforge | Destroyed 11 combat bots 24946 | -3/Protoforge | UFD reported confirmed Drillbomb installation 24975 | -3/Protoforge | Spotted Executioner 24975 | -3/Protoforge | Spotted Executioner 24975 | -3/Protoforge | Spotted Executioner 24977 | -3/Protoforge | Destroyed Executioner 24993 | -3/Protoforge | Spotted Executioner 24998 | -3/Protoforge | Destroyed Executioner 25000 | -3/Protoforge | Destroyed Executioner 25009 | -3/Protoforge | Spotted Executioner 25025 | -3/Protoforge | Spotted Striker 25029 | -3/Protoforge | Destroyed Executioner 25030 | -3/Protoforge | Destroyed Striker 25053 | -3/Protoforge | Destroyed 16 combat bots 25061 | -3/Protoforge | Lost 7 allies 25075 | -3/Protoforge | UFD reported confirmed Drillbomb installation 25075 | -3/Protoforge | Spotted Striker 25077 | -3/Protoforge | Spotted Striker 25083 | -3/Protoforge | Spotted Striker 25083 | -3/Protoforge | Destroyed Striker 25085 | -3/Protoforge | Destroyed Striker 25087 | -3/Protoforge | Spotted Striker 25089 | -3/Protoforge | Destroyed Striker 25116 | -3/Protoforge | Spotted Executioner 25119 | -3/Protoforge | Destroyed Executioner 25141 | -3/Protoforge | Destroyed 13 combat bots 25258 | -3/Protoforge | Found Cep. Helical Railcannon 25270 | -3/Protoforge | Found Faulty Cep. Plasma Driver 25385 | -3/Protoforge | Spotted Executioner 25389 | -3/Protoforge | Spotted Striker 25473 | -3/Protoforge | Spotted Executioner 25510 | -3/Protoforge | Spotted Executioner 25538 | -3/Protoforge | Spotted Executioner 25546 | -3/Protoforge | Destroyed Executioner 25550 | -3/Protoforge | Spotted Executioner 25552 | -3/Protoforge | Destroyed Executioner 25558 | -3/Protoforge | Spotted Executioner 25559 | -3/Protoforge | Destroyed Executioner 25571 | -3/Protoforge | Spotted Executioner 25571 | -3/Protoforge | Destroyed Executioner 25596 | -3/Protoforge | Destroyed 9 combat bots 25618 | -3/Protoforge | Spotted Striker 25621 | -3/Protoforge | Destroyed Striker 25622 | -3/Protoforge | Spotted Executioner 25642 | -3/Protoforge | Spotted Striker 25650 | -3/Protoforge | Spotted Executioner 25658 | -3/Protoforge | Destroyed Executioner 25675 | -3/Protoforge | Spotted Striker 25675 | -3/Protoforge | Spotted Striker 25679 | -3/Protoforge | Destroyed 7 combat bots 25679 | -3/Protoforge | Spotted Striker 25685 | -3/Protoforge | Lost 6 allies 25686 | -3/Protoforge | Destroyed Striker 25689 | -3/Protoforge | Spotted Striker 25693 | -3/Protoforge | Destroyed 03F67-K 25728 | -3/Protoforge | UFD reported confirmed Drillbomb installation 25855 | -3/Protoforge | UFD reported confirmed Drillbomb installation 25856 | -3/Protoforge | Destroyed 19 combat bots 25880 | -3/Protoforge | Spotted Striker 25885 | -3/Protoforge | Spotted Striker 25890 | -3/Protoforge | Destroyed Striker 25910 | -3/Protoforge | Spotted Striker 25923 | -3/Protoforge | Destroyed Striker 25943 | -3/Protoforge | Spotted Executioner 25985 | -3/Protoforge | Found Prototype Device 25985 | -3/Protoforge | Identified Adv. Kinecellerator 25999 | -3/Protoforge | Spotted Executioner 25999 | -3/Protoforge | Spotted Executioner 25999 | -3/Protoforge | Destroyed Executioner 26007 | -3/Protoforge | Lost 5 allies 26007 | -3/Protoforge | Destroyed Executioner 26020 | -3/Protoforge | Spotted Executioner 26022 | -3/Protoforge | Destroyed Executioner 26043 | -3/Protoforge | Destroyed 8 combat bots 26063 | -3/Protoforge | Spotted Executioner 26079 | -3/Protoforge | Spotted Executioner 26082 | -3/Protoforge | Spotted Executioner 26082 | -3/Protoforge | Destroyed Executioner 26099 | -3/Protoforge | Spotted Executioner 26116 | -3/Protoforge | Spotted Executioner 26118 | -3/Protoforge | Destroyed Executioner 26120 | -3/Protoforge | Destroyed Executioner 26123 | -3/Protoforge | Spotted Executioner 26125 | -3/Protoforge | Destroyed Executioner 26129 | -3/Protoforge | Spotted Executioner 26129 | -3/Protoforge | Destroyed Executioner 26148 | -3/Protoforge | Lost 5 allies 26158 | -3/Protoforge | Destroyed 8 combat bots 26176 | -3/Protoforge | Spotted Striker 26178 | -3/Protoforge | Spotted Executioner 26191 | -3/Protoforge | Spotted Striker 26200 | -3/Protoforge | Destroyed Striker 26202 | -3/Protoforge | Destroyed Striker 26243 | -3/Protoforge | Lost 4 allies 26279 | -3/Protoforge | Spotted Striker 26292 | -3/Protoforge | Spotted Striker 26297 | -3/Protoforge | Destroyed 8 combat bots 26300 | -3/Protoforge | Destroyed Striker 26306 | -3/Protoforge | Destroyed Striker 26317 | -3/Protoforge | Spotted Executioner 26317 | -3/Protoforge | Destroyed Striker 26319 | -3/Protoforge | Destroyed Executioner 26352 | -3/Protoforge | Spotted Executioner 26356 | -3/Protoforge | Destroyed Executioner 26367 | -3/Protoforge | UFD reported confirmed Drillbomb installation 26368 | -3/Protoforge | UFD began Drillbomb countdown 26376 | -3/Protoforge | Lost 4 allies 26387 | -3/Protoforge | Destroyed 16 combat bots 26404 | -3/Protoforge | Entered Research 26404 | -2/Research | Evolved 2 slots: Power x1, Utility x1 26405 | -2/Research | Identified exit to Access 26448 | -2/Research | Discovered exit to Access (range 11) 26483 | -2/Research | Spotted Striker 26485 | -2/Research | Spotted Striker 26514 | -2/Research | Spotted B-90 Cyclops 26530 | -2/Research | Discovered new exit (range 7) 26559 | -2/Research | Spotted B-90 Cyclops 26566 | -2/Research | Unchained authorized (DW-4LL) 26891 | -2/Research | Destroyed DW-4LL 26900 | -2/Research | Found Prototype Device 26904 | -2/Research | First assault squad dispatched 26908 | -2/Research | Entered Testing 26908 | -2/Testing | Identified Zeronet Interface 26976 | -2/Testing | Found Prototype Energy Cannon 26976 | -2/Testing | Identified Disintegrator 27028 | -2/Testing | Spotted Striker 27029 | -2/Testing | Spotted Striker 27031 | -2/Testing | Scanned by Researcher 27056 | -2/Testing | Destroyed PH-6QLTDMOJD1 27121 | -2/Testing | Found Prototype Energy Cannon 27121 | -2/Testing | Identified Imp. Potential Cannon 27123 | -2/Testing | Found Prototype Energy Cannon 27123 | -2/Testing | Identified Potential Cannon 27146 | -2/Testing | Unchained authorized (CL-0N3) 27158 | -2/Testing | First assault squad dispatched 27232 | -2/Testing | Discovered exit to Access (range 12) 27263 | -2/Testing | Found Prototype Ballistic Gun 27263 | -2/Testing | Identified Hyp. Multirail 27344 | -2/Testing | W-44 Eye reconstituted as Alpha 7 27344 | -2/Testing | Spotted Alpha 7 27377 | -2/Testing | Build established: Hacker-Scout 27383 | -2/Testing | Destroyed Alpha 7 27383 | -2/Testing | Alpha 7 reconstituted as CL-0N3 27487 | -2/Testing | Found Prototype Protection 27487 | -2/Testing | Identified Med. Regenerative Plating 27490 | -2/Testing | Found Prototype Protection 27500 | -2/Testing | Identified Hvy. Regenerative Plating 27526 | -2/Testing | Found Prototype Processor 27532 | -2/Testing | Identified Spectral Analyzer 27541 | -2/Testing | K-01 Serf reconstituted as Combat Programmer 27541 | -2/Testing | Spotted Combat Programmer 27570 | -2/Testing | Destroyed Combat Programmer 27570 | -2/Testing | Combat Programmer reconstituted as CL-0N3 27663 | -2/Testing | Destroyed 10 combat bots 27703 | -2/Testing | High security lockdown imminent 27742 | -2/Testing | Destroyed 19 combat bots 27783 | -2/Testing | High security lockdown engaged 27804 | -2/Testing | Destroyed 10 combat bots 27860 | -2/Testing | System corruption reached 10% 27863 | -2/Testing | Destroyed Executioner 27890 | -2/Testing | Destroyed 17 combat bots 27939 | -2/Testing | Spotted Striker 27939 | -2/Testing | Spotted Striker 27941 | -2/Testing | Destroyed Striker 27941 | -2/Testing | Destroyed Striker 27956 | -2/Testing | Spotted Executioner 27958 | -2/Testing | Spotted Executioner 27958 | -2/Testing | Destroyed Executioner 27960 | -2/Testing | Destroyed Executioner 27961 | -2/Testing | Destroyed Investigator 27961 | -2/Testing | K-01 Serf reconstituted as Combat Programmer 27964 | -2/Testing | Destroyed Combat Programmer 27964 | -2/Testing | Combat Programmer reconstituted as CL-0N3 28002 | -2/Testing | Destroyed 24 combat bots 28062 | -2/Testing | Build established: Scavenger-Sprinter 28110 | -2/Testing | Spotted Striker 28112 | -2/Testing | Destroyed Striker 28146 | -2/Testing | Destroyed 23 combat bots 28297 | -2/Testing | Spotted Striker 28298 | -2/Testing | Destroyed Striker 28302 | -2/Testing | Spotted Striker 28303 | -2/Testing | Spotted Executioner 28303 | -2/Testing | Destroyed Executioner 28305 | -2/Testing | Destroyed Striker 28307 | -2/Testing | Spotted Executioner 28310 | -2/Testing | Spotted Executioner 28332 | -2/Testing | Destroyed Executioner 28353 | -2/Testing | Destroyed 25 combat bots 28426 | -2/Testing | Destroyed 7 combat bots 28475 | -2/Testing | Entered Access 28475 | -1/Access | Evolved 2 slots: Propulsion x1, Utility x1 28476 | -1/Access | Identified exit to Surface 28568 | -1/Access | Found Prototype Processor 28616 | -1/Access | Spotted Striker 28616 | -1/Access | Spotted Striker 28698 | -1/Access | Unchained authorized (CL-0N3) 28789 | -1/Access | Build established: Sprinter 28904 | -1/Access | Destroyed 7 combat bots 28947 | -1/Access | Found Prototype Launcher 28947 | -1/Access | Identified Gui. Micro-nuke Launcher 28960 | -1/Access | U-05 Engineer reconstituted as Combat Programmer 28968 | -1/Access | Spotted Combat Programmer 29001 | -1/Access | Combat Programmer reconstituted as CL-0N3 29010 | -1/Access | Garrison activated, responded to threat 29050 | -1/Access | Spotted B-99 Colossus 29113 | -1/Access | Garrison activated, responded to threat 29128 | -1/Access | Destroyed CL-0N3 29131 | -1/Access | Extracted schematics, analyses from CL-0N3's data core 29154 | -1/Access | Spotted B-99 Colossus 29164 | -1/Access | Destroyed 29 combat bots 29225 | -1/Access | First assault squad dispatched 29242 | -1/Access | High security lockdown imminent 29306 | -1/Access | Destroyed 13 combat bots 29311 | -1/Access | Found Prototype Launcher 29311 | -1/Access | Identified Point Singularity Launcher 29322 | -1/Access | High security lockdown engaged 29376 | -1/Access | Found Gamma Bomb Array 29381 | -1/Access | Destroyed 7 combat bots 29482 | -1/Access | Spotted Striker 29485 | -1/Access | Destroyed Striker 29509 | -1/Access | Destroyed 16 combat bots 29737 | -1/Access | Spotted Executioner 29744 | -1/Access | Destroyed Executioner 29768 | -1/Access | Build established: Scavenger-Sprinter 29785 | -1/Access | Destroyed 11 combat bots 29834 | -1/Access | Spotted Striker 29836 | -1/Access | Destroyed Striker 29921 | -1/Access | Destroyed 8 combat bots 29946 | -1/Access | Spotted Striker 29946 | -1/Access | Destroyed Striker 29947 | -1/Access | Spotted Striker 29948 | -1/Access | Garrison activated, responded to threat 29949 | -1/Access | Destroyed Striker 30011 | -1/Access | Destroyed 22 combat bots 30085 | -1/Access | Destroyed 10 combat bots 30127 | -1/Access | Spotted Investigator 30131 | -1/Access | Destroyed Investigator 30152 | -1/Access | Destroyed 8 combat bots 30227 | -1/Access | Spotted Executioner 30229 | -1/Access | Spotted Striker 30229 | -1/Access | Spotted Executioner 30247 | -1/Access | Destroyed Striker 30267 | -1/Access | Destroyed Executioner 30272 | -1/Access | Destroyed Executioner 30321 | -1/Access | Spotted Executioner 30321 | -1/Access | Spotted Executioner 30354 | -1/Access | Destroyed Executioner 30355 | -1/Access | Destroyed Executioner 30356 | -1/Access | Spotted Striker 30357 | -1/Access | Destroyed Striker 30358 | -1/Access | Spotted Executioner 30368 | -1/Access | Destroyed Executioner 30443 | -1/Access | Destroyed 31 combat bots 30457 | -1/Access | Spotted Executioner 30457 | -1/Access | Spotted Executioner 30457 | -1/Access | Destroyed Executioner 30483 | -1/Access | Spotted Striker 30483 | -1/Access | Spotted Striker 30483 | -1/Access | Spotted Striker 30498 | -1/Access | Destroyed Striker 30503 | -1/Access | Destroyed Striker 30505 | -1/Access | Destroyed Striker 30526 | -1/Access | Spotted Executioner 30526 | -1/Access | Spotted Executioner 30528 | -1/Access | Destroyed Executioner 30531 | -1/Access | Destroyed Executioner 30536 | -1/Access | Destroyed Executioner 30554 | -1/Access | Spotted Executioner 30561 | -1/Access | Destroyed Executioner 30587 | -1/Access | Spotted B-99 Colossus 30604 | -1/Access | Destroyed 38 combat bots 30650 | -1/Access | Discovered new exit (range 9) 30668 | -1/Access | Destroyed B-99 Colossus 30687 | -1/Access | Spotted B-99 Colossus 30687 | -1/Access | Found Prototype Ballistic Gun 30733 | -1/Access | Destroyed B-99 Colossus 30739 | -1/Access | Found Prototype Ballistic Gun 30739 | -1/Access | Identified Multirail (x2) 30757 | -1/Access | Entered Command 30863 | -1/Command | Build established: Sprinter 30892 | -1/Command | Spotted B-99 Colossus 30899 | -1/Command | Destroyed B-99 Colossus 30942 | -1/Command | Spotted Executioner 30943 | -1/Command | Spotted Executioner 30943 | -1/Command | Destroyed Executioner 30948 | -1/Command | Destroyed Executioner 30962 | -1/Command | Spotted M Guard 30962 | -1/Command | Spotted M Guard 30962 | -1/Command | Spotted Combat Programmer 30978 | -1/Command | Spotted Combat Programmer 30978 | -1/Command | Destroyed Combat Programmer 30978 | -1/Command | Destroyed Combat Programmer 31005 | -1/Command | Destroyed M Guard 31007 | -1/Command | First assault squad dispatched 31039 | -1/Command | Destroyed M Guard 31039 | -1/Command | All MAIN.C guards destroyed 31045 | -1/Command | Found Corrupted Prototype Device 31060 | -1/Command | Destroyed 7 combat bots 31073 | -1/Command | Met MAIN.C 31074 | -1/Command | 0b10 Conduit disabled 31084 | -1/Command | Destroyed MAIN.C Shell 31086 | -1/Command | MAIN.C activated Command garrisons 31129 | -1/Command | Spotted B-99 Colossus 31150 | -1/Command | Lost 4 parts (1p2n1u) 31215 | -1/Command | Core integrity fell below 50% 31242 | -1/Command | Core integrity fell below 20% 31242 | -1/Command | System corruption reached 10% 31245 | -1/Command | Destroyed by P-80 Master with Gamma Rifle Last Messages --------------- 31223_ A bubble of rippling energy engulfs the area. 31223_ Field strength at 94. 31223_ Field strength at 83. 31223_ Penetrated by Slug. 31224_ System corrupted: Energy discharge (-29). 31224_ Stasis field depleted. 31226_ Slug penetrates Door. 31227_ Imp. Heavy Treads destroyed. 31227_ Knocked back. 31230_ Connecting with Terminal... 31232_ Imp. Heavy Treads destroyed. 31235_ Slug penetrates Wall. 31240_ Penetrated by Slug. 31241_ Slammed into W-44 Eye. 31241_ Destabilizing: System corrupted (+1). 31242_ Slammed into W-44 Eye. 31243_ Cep. Gyrokinetic System destroyed. 31243_ Critical hit (Blast). 31243_ S-43 Plague destroyed. 31243_ Slammed into W-44 Eye. Map ----- +----------------------------------------------------+ | ?????????????????????????????????????????????????? | | ?????????????????????????????????????????????????? | | ?????????????????????????????????????????????????? | | ?????????????????????????????????????????????????? | | ?????????????????????????????????????????????????? | | ?????????????????????????????????????????????????? | | ?????????????????????????????????????????????????? | | ?????????????????????????????????????????????????? | | ?????????????????????????????????????????????????? | | ?????????????????????????????????????????????????? | | ?????????????????????????????????????????????????? | | ?????????????????????????????????????????????????? | | ?????????????????????????????????????????????????? | | ??????????????????????????????#?## ? ????????? | | ?????????????????????????????? ?????????? | | ????????????????????????????? ??????????? | | ?????????????????????????????# #?#######??? | | ?????????????????????????????# #?# ??? | | ?????????????????????????????# #?# ??? | | ?????????????????????????????# #?? =??? | | ??????????????######?????????# #??? ??? | | ??????????????# #?????#+#?# #??? ??? | | ??????????????# #?????# #?# #??? ### | | ??????????????# #?????# #?# #???#+#+## | | ??????????????# ]####### ###x Y #???# | | ??????????????# # =@w xx ##### | | ??????????????# + ss%s x w ^ | | ??????????????# ######Mp k | | ??????????????# #????# | | ??????????????# #????# p g | | ??????????????######????# g g | | ????????????????????????# g """" | | ????????????????????????# =s ^ """" | | ????????????????????????# g """" ### | | ????????????????????????# """" # | | ????????????????????????# Y Y + | | ????????????????????????# # | | ????????????????????????# """ """ #? | | ????????????????????????# """T""" # | | ????????????????????????############;########### | | ??????????????????????????????# #???# | | ??????????????????????????????#% % ^ #???# | | ??????????????????????????????# ^ % ##??# | | ??????????????????????????????# #??# | | ??????????????????????????????# ! ##??# | | ??????????????????????????????# ! !!!! #???### | | ??????????????????????????????# !!]]! #?????? | | ??????????????????????????????# * !!!!! + ??? | | ??????????????????????????????# ]!%]!!! # | | ??????????????????????????????# !!=%[ # | +----------------------------------------------------+ Best States ------------- Heat Dissipation 124 Energy Generation 83 Energy Capacity 2440 Matter Stores 300 Matter Capacity 300 Sight Range 23 Robot Scan Range 16 Terrain Scan Density 1010 ECM Strength 3 Jamming Range 16 Cloak Strength 9 Power Amplification 30 Additional Mass Support 6 Base Temperature (-) 200 Armor Coverage 1200 Resistance: KI 30 Propulsion Shielding 90 Utility Shielding 66 Weapon Shielding 66 Point Defense Rating 480 Projectile Deflection 15 Weapon Cycling 30 Melee Speed Boost 50 Phase Shifting 25 Evasion (%) 107 Targeting Accuracy 30 Melee Accuracy 8 Core Analysis 12 Armor Integrity Analysis 50 Recoil Reduction 3 Offensive Hacking 50 Defensive Hacking 14 Authchip Count 2 Item Schematics ----------------- Hrd. Medium Armor Plating | -9/Recycling | Hacked Deep Structural Scanner | -9/Scraptown | Extrapolated Machine Rigger | -9/Scraptown | Extrapolated Spk. Treads | -9/Scraptown | Extrapolated Mak. ECM Suite | -9/Scraptown | Extrapolated Mak. Leg | -9/Scraptown | Extrapolated Mak. Coolant Network | -9/Scraptown | Extrapolated Mak. Core Shielding | -9/Scraptown | Extrapolated Mak. Light Armor Plating | -9/Scraptown | Extrapolated 0b10 Decoder Chip [Generic] | -6/Factory | Extrapolated Spk. Medium Treads | -6/Factory | Extrapolated Mak. Terrain Scan Processor | -6/Factory | Extrapolated 0b10 Decoder Chip [Scout] | -6/Factory | Extrapolated 0b10 Decoder Chip [Skirmisher] | -6/Factory | Extrapolated Tactical Coordination Suite | -6/Factory | Extrapolated Energy Deflector | -6/Factory | Extrapolated Mak. System Shield | -6/Factory | Extrapolated Mak. Salvage Targeting Computer | -6/Factory | Extrapolated Mak. Targeting Computer | -6/Factory | Extrapolated CPS Tube | -6/Factory | Scanalyzed Beamcaster | -6/Factory | Extrapolated Battle Cannon | -6/Factory | Extrapolated Mak. Trap Scanner | -6/Factory | Extrapolated Mak. Terrain Scanner | -6/Factory | Extrapolated Mak. Thermal Plating | -6/Factory | Extrapolated Bore Cannon | -6/Factory | Extrapolated Mak. Hammer | -6/Factory | Extrapolated Cld. Cesium-ion Thruster | -6/Factory | Scanalyzed Slug Cannon | -6/Factory | Extrapolated Mak. Power Source | -6/Factory | Extrapolated Spk. Heavy Treads | -6/Factory | Extrapolated Mak. Flight Unit | -6/Factory | Extrapolated Nanoactuators | -6/Factory | Scanalyzed Mak. System Restoration Module | -6/Factory | Extrapolated Mak. Kinetic Plating | -6/Factory | Extrapolated Mak. Laser | -6/Factory | Extrapolated Multitool | -6/Factory | Extrapolated Assault Drone Bay | -5/Zhirov | Free Exp. Heat Sink | -5/Zhirov | Free Exp. Optical Array | -5/Zhirov | Free Imp. Arc Thrower | -5/Zhirov | Free Cld. Nuclear Pulse Thruster | -4/Factory | Hacked Hds. Centrium Wheel | -3/Protoforge | Archive Adv. KE Penetrator | -3/Protoforge | Archive Enh. Biometal Leg | -3/Protoforge | Archive Hvy. Tesla Rifle | -3/Protoforge | Archive Prc. Phase Gun | -3/Protoforge | Archive Exp. Coolant Injector | -3/Protoforge | Archive Exp. Hacking Suite | -3/Protoforge | Archive Exp. Targeting Computer | -3/Protoforge | Archive Mni. Smartbomb Launcher | -3/Protoforge | Archive Gravity Flail | -3/Protoforge | Archive Tactical Quantum Warhead | -3/Protoforge | Archive Nanosword | -3/Protoforge | Archive Centrium Greatsword | -3/Protoforge | Archive Imp. Matter Compressor | -2/Testing | Archive Exp. Core Analyzer | -2/Testing | Archive Adv. Micro-nuke Launcher | -2/Testing | Archive Adv. Gravity Neutralizer | -2/Testing | Archive Exp. Transmission Jammer | -2/Testing | Hacked Cld. Q-thruster | -2/Testing | Archive Impact Mace | -2/Testing | Archive Com. Mass Driver | -2/Testing | Archive Com. Particle Reactor | -2/Testing | Archive Hds. Centrium Heavy Treads | -2/Testing | Archive Spectral Analyzer | -2/Testing | Scanalyzed Robot Schematics ------------------ T-07 Excavator | -3/Protoforge | Archive H-77 Assassin | -3/Protoforge | Archive R-06 Scavenger | -3/Protoforge | Archive A-15 Conveyor | -3/Protoforge | Archive K-01 Serf | -3/Protoforge | Archive A-27 Freighter | -2/Testing | Archive S-43 Plague | -2/Testing | Archive M-36 Artificer | -2/Testing | Archive A-02 Transporter | -1/Access | Archive R-10 Processor | -1/Access | Archive M-14 Sweeper | -1/Access | Archive M-22 Extractor | -1/Access | Archive M-30 Cleanser | -1/Access | Archive M-13 Machinist | -1/Access | Archive M-28 Smith | -1/Access | Archive O-16 Technician | -1/Access | Archive O-24 Administrator | -1/Access | Archive O-32 Director | -1/Access | Archive W-16 Scout | -1/Access | Archive W-25 Informer | -1/Access | Archive W-44 Eye | -1/Access | Archive S-10 Pest | -1/Access | Archive S-27 Virus | -1/Access | Archive G-34 Mercenary | -1/Access | Archive G-47 Trooper | -1/Access | Archive G-50 Soldier | -1/Access | Archive G-67 Veteran | -1/Access | Archive G-73 Enforcer | -1/Access | Archive B-36 Bruiser | -1/Access | Archive B-48 Gladiator | -1/Access | Archive B-60 Warrior | -1/Access | Archive B-74 Champion | -1/Access | Archive L-31 Rogue | -1/Access | Archive L-41 Fighter | -1/Access | Archive L-61 Swordsman | -1/Access | Archive Y-45 Defender | -1/Access | Archive Y-54 Guardian | -1/Access | Archive Y-64 Sentinel | -1/Access | Archive Y-72 Warden | -1/Access | Archive D-53 Grenadier | -1/Access | Archive D-63 Destroyer | -1/Access | Archive D-83 Annihilator | -1/Access | Archive X-57 Shotgunner | -1/Access | Archive X-62 Marksman | -1/Access | Archive X-67 Chaingunner | -1/Access | Archive X-72 Disruptor | -1/Access | Archive X-77 Beamer | -1/Access | Archive X-82 Rainmaker | -1/Access | Archive X-87 Electro | -1/Access | Archive H-55 Commando | -1/Access | Archive H-66 Slayer | -1/Access | Archive H-88 Terminator | -1/Access | Archive P-60 Hacker | -1/Access | Archive P-70 Sage | -1/Access | Archive P-80 Master | -1/Access | Archive Fabricated ------------ Cld. Cesium-ion Thruster | x1 | -6/Factory | Authchip Cld. Cesium-ion Thruster | x1 | -5/Factory | Authchip Cld. Cesium-ion Thruster | x1 | -5/Factory Cld. Nuclear Pulse Thruster | x1 | -4/Factory | Authchip Nanoactuators | x2 | -3/Research | Authchip Nanoactuators | x2 | -3/Protoforge Cld. Nuclear Pulse Thruster | x1 | -3/Protoforge Cld. Nuclear Pulse Thruster | x1 | -3/Protoforge | Authchip Repaired ---------- Lgt. Fission Core | 30% | -4/Factory Imp. Powered Armor | 39% | -3/Quarantine | Broken Studied --------- Hvy. Pick | -6/Factory | Hacked Mic. Nuclear Core | -6/Factory | Hacked Hyp. Gauss Rifle | -6/Factory | Hacked Lgt. Fission Core | -6/Factory | Hacked Field Propulsion Array | -3/Research | Hacked Mic. Antimatter Reactor | -3/Research | Hacked Alien Tech Used ----------------- Core Expander Integrated Reactor Subatomic Replicator Dimensional Node Initializer Supercharged TR Transdimensional Reconstructor Achievements -------------- Dominance Asserted Red Leader Challenges ------------ None Game ------ Seed BoreSubatomicStatue Manual? 0 Play Time 09:41:44 Cumulative 1017.1 hours Start 2025.11.10 @ 11:22:23 End 2025.11.10 @ 23:31:49 Sessions 9 Manual Loads 0 Difficulty Rogue Special Mode None Game No. 315 Rogue 313 Adventurer 2 Explorer 0 Win Type - Total 72 Types 20/17/16/1/1/1/12/1/1/2 Lore% 97 Gallery% 95 Achievement% 82 Wizard Run 0 Options --------- Layout 0 ASCII 0 Keyboard 1 Movement Numpad Keybinds 0 Fullscreen 1 Font 24/Smallcaps Map View 76x50 Zoom Use 0% Tactical HUD 1 Map Filters NONE Filters NONE Steam 1 RUN: 9c33b55b-18fd-4d35-b346-01593bc36764